Workbook

Sheet Instructions (hidden)
A3: Workbook must be manipulated to accommodate DDA changes
A5: Unhide all tabs
A6: Unprotect all tabs
A7: Headings will need to be selected to make changes
A9: Lists Tab
A10: Revise any list for drop down menus used throughout the cost report. This may affect formulas throughout the report.
A12: Adminstrator Regression Table

Sheet Lists (hidden)
A1: Provider Name | B1: Provider ID | C1: Urban Designation | E1: Program Type | F1: Service Code & RAC | G1: Professional Services | H1: Purchased Professional Services | I1: COCA Service Code & RAC | J1: Staff Add-On Service Code & RAC | L1: Monthly / Quarterly | N1: Region | P1: Schedule B
P2: 1 | Q2: 2a | R2: 2b | S2: 2c
A3: 1N - Aacres WA | B3: 111414301 | C3: MSA | E3: SL Supported Living | F3: SL Supported Living | G3: SL Behav Hab | H3: SL Authorized ISS Purchased Professional Services | I3: GH SA720-3603 COCA CORE | J3: SA725-3701 GH STAFF ADD-ON FEDERAL RCL | L3: Monthly | N3: 1N
A4: 1N - Aacres Spokane 2 | B4: 111414310 | C4: MSA | E4: GH Group Home | F4: GH Group Home | G4: SL Hab DBT | H4: GH Authorized ISS Purchased Professional Services | I4: GH SA720-3701 COCA RCL | J4: SA725-3905 GH STAFF ADD-ON FEDERAL State | L4: Quarterly | N4: 1S | P4: Yes | Q4: Yes | R4: Yes | S4: Program Revenues
A5: 1N - Aacres Spokane 3 | B5: 111414309 | C5: MSA | E5: GTH Group Training Home | F5: GTH Group Training Home | G5: SL Language Translator | H5: GTH Authorized ISS Purchased Professional Services | I5: GH SA726-3603 COCA CORE | J5: SA719-3603 GH STAFF ADD-ON STATE CORE | N5: 2N | P5: No | Q5: No | R5: No | S5: ISS/Direct Care Cost
A6: 1N - Adult Guidance & Empowerment Service | B6: 111684901 | C6: MSA | F6: SA716-3603 SL CORE | G6: SL LPN M&C | I6: GH SA726-3701 COCA RCL | J6: SA719-3701 GH STAFF ADD-ON STATE RCL | N6: 2S | S6: Other Method - Please describe
A7: 1N - Alpha Supported Living (Spokane) | B7: 111320906 | C7: MSA | F7: SA716-3604 SL CP | G7: SL RN M&C | I7: GH SA726-3905 COCA State | J7: SA719-3905 GH STAFF ADD-ON STATE State | N7: 3N
A8: 1N - Ambitions - Spokane | B8: 111901906 | C8: MSA | F8: SA716-3701 SL RCL | G8: SL Sign Language Interp | I8: SL SA720-3603 COCA CORE | J8: SA719-3603 SL STAFF ADD-ON STATE CORE | N8: 3S
A9: 1N - Ambitions - Wenatchee, Omak, Moses Lake | B9: 111901903 | C9: MSA/NON-MSA | F9: SA716-3905 SL State | G9: SL Other | I9: SL SA720-3604 COCA CP | J9: SA719-3604 SL STAFF ADD-ON STATE CP
A10: 1N - ARC of Spokane | B10: 111426502 | C10: MSA | F10: SA722-3603 GH CORE | G10: GH Behav Hab | I10: SL SA720-3701 COCA RCL | J10: SA719-3701 SL STAFF ADD-ON STATE RCL
A11: 1N - Assisted Residential Services | B11: 111705601 | C11: MSA | F11: SA722-3701 GH RCL | G11: GH Hab DBT | I11: SL SA726-3603 COCA CORE | J11: SA719-3905 SL STAFF ADD-ON STATE State
A12: 1N - Community Integrated Services | B12: 111425301 | C12: MSA | F12: SA722-3905 GH State | G12: GH Language Translator | I12: SL SA726-3604 COCA CP | J12: SA725-3603 SL STAFF ADD-ON FEDERAL CORE
A13: 1N - Community Visions | B13: 111530102 | C13: MSA | F13: SA722-3603 GTH CORE | G13: GH LPN M&C | I13: SL SA726-3701 COCA RCL | J13: SA725-3604 SL STAFF ADD-ON FEDERAL CP
A14: 1N - Dreamworks Residential | B14: 111913801 | C14: NON-MSA | F14: SA722-3701 GTH RCL | G14: GH RN M&C | I14: SA726-3905 SL COCA State | J14: SA725-3701 SL STAFF ADD-ON FEDERAL RCL
A15: 1N - Drive Services | B15: 111621401 | C15: MSA | F15: SA722-3905 GTH State | G15: GH Sign Language Interp | J15: SA725-3905 SL STAFF ADD-ON FEDERAL State
A16: 1N - Excel Supported Living | B16: 111322002 | C16: MSA | G16: GH Other
A17: 1N - Grace Support Services | B17: 212120601 | C17: MSA | G17: GTH Behav Hab
A18: 1N - Grant County Developmental Disabilities (DCL) | B18: 200012501 | C18: NON-MSA | G18: GTH Hab DBT
A19: 1N - Hope Human Services (Spokane) | B19: 207150604 | C19: MSA | G19: GTH Language Translator
A20: 1N - Hope Supported Living | B20: 213504001 | C20: MSA | G20: GTH LPN M&C
A21: 1N - Kaler House | B21: 111686001 | C21: MSA | G21: GTH RN M&C
A22: 1N - L.M.K. | B22: 111988202 | C22: NON-MSA | G22: GTH Sign Language Interp
A23: 1N - Latah Services | B23: 111762501 | C23: MSA | G23: GTH Other
A24: 1N - Living In Fulfilling Environment | B24: 111777301 | C24: MSA
A25: 1N - Mission Vista | B25: 111707401 | C25: MSA
A26: 1N - Parent's Cooperative Society for the Handicapped (Merry Glen) | B26: 111328901 | C26: MSA
A27: 1N - ResCare Spokane | B27: 111968514 | C27: MSA
A28: 1S - Alternative Residential Services | B28: 111625401 | C28: MSA/NON-MSA
A29: 1S - Ambitions - Kennewick | B29: 111901901 | C29: MSA
A30: 1S - Ambitions - Yakima | B30: 111901907 | C30: MSA
A31: 1S - Community Living | B31: 111962202 | C31: MSA
A32: 1S - Deaf Access Washington | B32: 111321901 | C32: MSA
A33: 1S - Elmview | B33: 111604101 | C33: MSA/NON-MSA
A34: 1S - Habilitat | B34: 111449601 | C34: NON-MSA
A35: 1S - Kittitas Interactive Management | B35: 111688701 | C35: NON-MSA
A36: 1S - Kittitas Interactive Management (Yakima) | B36: 111688702 | C36: MSA
A37: 1S - Reach Supported Living | B37: 209862801 | C37: MSA
A38: 1S - Reach Supported Living Walla Walla | B38: 209862802 | C38: MSA
A39: 1S - Tri-Cities Residential Services | B39: 111872501 | C39: MSA
A40: 1S - Valley Residential Services | B40: 111777901 | C40: NON-MSA
A41: 2N - Aacres | B41: 111414307 | C41: MSA
A42: 2N - Access Living | B42: 111675101 | C42: MSA
A43: 2N - All Heart Agency | B43: 111961601 | C43: MSA
A44: 2N - Alpha Supported Living Services | B44: 111320902 | C44: MSA
A45: 2N - Ambitions Whatcom | B45: 111901908 | C45: MSA
A46: 2N - Camelot Society | B46: 101955202 | C46: MSA
A47: 2N - Cascade Connections | B47: 111724102 | C47: MSA
A48: 2N - Evergreen Supported Living | B48: 111690301 | C48: MSA
A49: 2N - Holly Community Services | B49: 111765001 | C49: MSA
A50: 2N - La Casa de Esperanza | B50: 111390801 | C50: MSA
A51: 2N - Puffin Island | B51: 111959501 | C51: MSA
A52: 2N - Quilceda Community Services | B52: 111321203 | C52: MSA
A53: 2N - Rehabco | B53: 111681901 | C53: MSA
A54: 2N - Rescare | B54: 111968512 | C54: MSA
A55: 2N - Sails | B55: 111805705 | C55: MSA
A56: 2N - Service Alternatives for WA | B56: 111513304 | C56: MSA
A57: 2N - Snohomish Supportive Living Services | B57: 111518901 | C57: MSA
A58: 2N - Soundview Association | B58: 111830201 | C58: MSA
A59: 2N - Steps Toward Independence | B59: 112034301 | C59: MSA
A60: 2N - Sunrise Services | B60: 203434610 | C60: MSA
A61: 2N - Village Community Services | B61: 111938301 | C61: MSA
A62: 2N - Volunteers of America | B62: 200494106 | C62: MSA
A63: 2S - Aacres | B63: 111414302 | C63: KING
A64: 2S - Alpha Supported Living Services | B64: 111320901 | C64: KING
A65: 2S - Ambitions | B65: 111901902 | C65: KING
A66: 2S - Arc of King County | B66: 112013701 | C66: KING
A67: 2S - Banchero Friends Services | B67: 111415001 | C67: KING
A68: 2S - Bethesda Lutheran Communities | B68: 111621301 | C68: KING
A69: 2S - Camelot Society | B69: 101955201 | C69: KING
A70: 2S - Cascade Community Services | B70: 111875001 | C70: KING
A71: 2S - Citizen Access Residential Resources | B71: 111533401 | C71: KING
A72: 2S - Community Integrated Services | B72: 111425302 | C72: KING
A73: 2S - Community Living | B73: 111962201 | C73: KING
A74: 2S - Destiny House Operations | B74: 111992801 | C74: KING
A75: 2S - Friendship House | B75: 111405501 | C75: KING
A76: 2S - Greenwood Home | B76: 111913301 | C76: KING
A77: 2S - Habilitation Services | B77: 208173701 | C77: KING
A78: 2S - Helping Hands for the Disabled | B78: 111736002 | C78: KING
A79: 2S - Helping Hands DBA Dahlia | B79: 111736003 | C79: KING
A80: 2S - Inglewood Residential and Community Services | B80: 111568401 | C80: KING
A81: 2S - Integrated Living Services | B81: 111789002 | C81: KING
A82: 2S - L'Arche Noah Sealth of Seattle | B82: 111798601 | C82: KING
A83: 2S - Life Skills Center | B83: 111499601 | C83: KING
A84: 2S - Maksu | B84: 111577901 | C84: KING
A85: 2S - Nellie Goodhue Group Homes | B85: 111800501 | C85: KING
A86: 2S - Parkview Services | B86: 111456901 | C86: KING
A87: 2S - Premier Care Services | B87: 111437001 | C87: KING
A88: 2S - Provail | B88: 101144803 | C88: KING
A89: 2S - Puget Sound Regional Services | B89: 111925301 | C89: KING
A90: 2S - Res-Care Washington | B90: 111968506 | C90: KING
A91: 2S - SAILS | B91: 111805704 | C91: KING
A92: 2S - Service Alternatives for WA | B92: 111513302 | C92: KING
A93: 2S - Shamrock Living Services | B93: 111958301 | C93: KING
A94: 2S - Shared Journeys | B94: 111515201 | C94: KING
A95: 2S - Stand Together | B95: 111753401 | C95: KING
A96: 2S - Tahoma Hills | B96: 111799101 | C96: KING
A97: 2S - Total Living Concept | B97: 111571101 | C97: KING
A98: 2S - United Friends Group Home | B98: 101601101 | C98: KING
A99: 2S - Volunteers of America | B99: 200494104 | C99: KING
A100: 3N - Aacres WA | B100: 111414304 | C100: MSA
A101: 3N - Ambitions, WA | B101: 111901904 | C101: MSA
A102: 3N - Communitas Group | B102: 102702801 | C102: MSA
A103: 3N - Community Alternatives for People with Autism (CAPA) | B103: 112026801 | C103: MSA
A104: 3N - Educational Programs in Home Living | B104: 111975401 | C104: MSA
A105: 3N - Group Action for Peninsula People | B105: 111703801 | C105: MSA
A106: 3N - Hope Human Services | B106: 207150601 | C106: MSA
A107: 3N - Kitsap Residences | B107: 111781001 | C107: MSA
A108: 3N - Kitsap Tenant Support Services | B108: 111715902 | C108: MSA
A109: 3N - L'Arche Tahoma Hope Community | B109: 111610303 | C109: MSA
A110: 3N - Life Force Services | B110: 111691201 | C110: MSA
A111: 3N - NW Services for Independent Living | B111: 111812601 | C111: MSA
A112: 3N - Options Unlimited | B112: 111904801 | C112: MSA
A113: 3N - PAM Group Home | B113: 111728401 | C113: MSA
A114: 3N - Puget Sound Assisted Living | B114: 111557601 | C114: MSA
A115: 3N - Res-Care Washington | B115: 111968504 | C115: MSA
A116: 3N - Self Determined Services | B116: 111874501 | C116: MSA
A117: 3N - Service Alternatives for WA | B117: 111513305 | C117: MSA
A118: 3N - Tahoma Associates | B118: 111335302 | C118: MSA
A119: 3N - Valley Supported Living | B119: 111938101 | C119: MSA
A120: 3S - Aacres - Clark | B120: 111414303 | C120: NON-MSA
A121: 3S - Aacres - Thurston | B121: 111414308 | C121: MSA
A122: 3S - ABC Residential Services | B122: 555777999 | C122: MSA
A123: 3S - Adam's Place | B123: 214039510 | C123: MSA
A124: 3S - Ambitions | B124: 111901905 | C124: MSA/NON-MSA
A125: 3S - Another Option | B125: 111619102 | C125: MSA
A126: 3S - Arc of Clark County | B126: 102623403 | C126: MSA
A127: 3S - Brighton Enterprises - Clark | B127: 111686601 | C127: MSA
A128: 3S - Brighton Enterprises - Thurston | B128: 111686602 | C128: MSA
A129: 3S - CCH Individual Support Services | B129: 111909801 | C129: NON-MSA
A130: 3S - Citizen Access Residential Resources | B130: 111533403 | C130: MSA
A131: 3S - Community Resources | B131: 111977701 | C131: MSA/NON-MSA
A132: 3S - Exceptional Foresters | B132: 111551801 | C132: MSA
A133: 3S - Harbor Alternative Living Association | B133: 111349601 | C133: NON-MSA
A134: 3S - Hope Human Services | B134: 207150603 | C134: MSA
A135: 3S - Kitsap Tenant Support Services | B135: 111715901 | C135: NON-MSA
A136: 3S - Kokua | B136: 111492901 | C136: MSA
A137: 3S - Life Force Services - Clark | B137: 111691204 | C137: MSA
A138: 3S - Life Force Services - Thurston | B138: 111691202 | C138: MSA
A139: 3S - Life Works | B139: 111594402 | C139: MSA
A140: 3S - Placeone | B140: 111512001 | C140: MSA
A141: 3S - Reside Residential Care of Washington | B141: 111864101 | C141: MSA
A142: 3S - ROAR | B142: 111442501 | C142: MSA
A143: 3S - SOLO | B143: 111910501 | C143: MSA
A144: 3S - Twin Harbors Group Home Association | B144: 111669901 | C144: NON-MSA
A145: 3S - Vancare | B145: 111811201 | C145: MSA

Sheet Administrator Regression Table
A1: NUMBER OF ISS FTE's | B1: KING | C1: MSA | D1: MSA/ NON-MSA | E1: NON-MSA | H1: KING | I1: MSA | J1: MSA/ NON-MSA | K1: NON-MSA | M1: URBAN DESIGNATION & REPORTING PERIOD | N1: FTE MTH/QRT WAGES FY2019 | P1: =CONCATENATE(Q1,'B - ISS Payroll Expenses'!B10) -> MSAMonthly | Q1: =VLOOKUP(_M000001,Lists!A1:C145,3) -> MSA | R1: KING | S1: MSA | T1: MSA/ NON-MSA | U1: NON-MSA
A2: 1 | B2: =2080*H4 -> 81244.8 | C2: =2080*I4 -> 78748.8 | D2: =2080*J4 -> 78104 | E2: =2080*K4 -> 77459.2 | G2: FY2019 Benchmark | H2: 19.53 | I2: 18.93 | J2: =(18.93+18.62)/2 -> 18.775 | K2: 18.62 | M2: KingMonthly | N2: =H7/12 -> 3385.2
A3: 2 | B3: =$B$2-($B$2*(A3-1)*5%) -> 77182.56 | C3: =$C$2-($C$2*(A3-1)*5%) -> 74811.36 | D3: =$D$2-($D$2*(A3-1)*5%) -> 74198.8 | E3: =$E$2-($E$2*(A3-1)*5%) -> 73586.24 | F3: 1 | G3: 100% Increase | H3: =H2*F3 -> 19.53 | I3: =I2*F3 -> 18.93 | J3: =J2*F3 -> 18.775 | K3: =K2*F3 -> 18.62 | M3: KingQuarterly | N3: =H7/4 -> 10155.6
A4: 3 | B4: 73120.32 | C4: 70873.92 | D4: 70293.6 | E4: 69713.28 | G4: Adminstrator ISS Regression Hrly Rate | H4: =ROUND(SUM(H2:H3),2) -> 39.06 | I4: =ROUND(SUM(I2:I3),2) -> 37.86 | J4: =ROUND(SUM(J2:J3),2) -> 37.55 | K4: =ROUND(SUM(K2:K3),2) -> 37.24 | M4: MSA/NON-MSAMonthly | N4: =J7/12 -> 3254.333333
A5: 4 | B5: 69058.08 | C5: 66936.48 | D5: 66388.4 | E5: 65840.32 | M5: MSA/NON-MSAQuarterly | N5: =J7/4 -> 9763
A6: 5 | B6: 64995.84 | C6: 62999.04 | D6: 62483.2 | E6: 61967.36 | G6: ISS FTE Annual Hours | H6: 2080 | I6: 2080 | J6: 2080 | K6: 2080 | M6: MSAMonthly | N6: =I7/12 -> 3281.2
A7: 6 | B7: 60933.6 | C7: 59061.6 | D7: 58578 | E7: 58094.4 | G7: Annual ISS FTE Wages | H7: =H2*H6 -> 40622.4 | I7: =I2*I6 -> 39374.4 | J7: =J2*J6 -> 39052 | K7: =K2*K6 -> 38729.6 | M7: MSAQuarterly | N7: =I7/4 -> 9843.6
A8: 7 | B8: 56871.36 | C8: 55124.16 | D8: 54672.8 | E8: 54221.44 | M8: NON-MSAMonthly | N8: =K7/12 -> 3227.466667
A9: 8 | B9: 52809.12 | C9: 51186.72 | D9: 50767.6 | E9: 50348.48 | M9: NON-MSAQuarterly | N9: =K7/4 -> 9682.4
A10: 9 | B10: 48746.88 | C10: 47249.28 | D10: 46862.4 | E10: 46475.52
A11: 10 | B11: 44684.64 | C11: 43311.84 | D11: 42957.2 | E11: 42602.56
A12: 11 | B12: 40622.4 | C12: 39374.4 | D12: 39052 | E12: 38729.6
A13: 12 | B13: 36560.16 | C13: 35436.96 | D13: 35146.8 | E13: 34856.64
A14: 13 | B14: 32497.92 | C14: 31499.52 | D14: 31241.6 | E14: 30983.68
A15: 14 | B15: 28435.68 | C15: 27562.08 | D15: 27336.4 | E15: 27110.72 | R15: =IF('B - ISS Payroll Expenses'!D16=0,0,IF('B - ISS Payroll Expenses'!$B$10="Quarterly",0,VLOOKUP('B - ISS Payroll Expenses'!D16,'Administrator Regression Table'!$A$1:$E$22,2))/12) -> 0 | S15: =IF('B - ISS Payroll Expenses'!D16=0,0,IF('B - ISS Payroll Expenses'!$B$10="Quarterly",0,VLOOKUP('B - ISS Payroll Expenses'!D16,'Administrator Regression Table'!$A$1:$E$22,3))/12) -> 0 | T15: =IF('B - ISS Payroll Expenses'!D16=0,0,IF('B - ISS Payroll Expenses'!$B$10="Quarterly",0,VLOOKUP('B - ISS Payroll Expenses'!D16,'Administrator Regression Table'!$A$1:$E$22,4))/12) -> 0 | U15: =IF('B - ISS Payroll Expenses'!D16=0,0,IF('B - ISS Payroll Expenses'!$B$10="Quarterly",0,VLOOKUP('B - ISS Payroll Expenses'!D16,'Administrator Regression Table'!$A$1:$E$22,5))/12) -> 0
A16: 15 | B16: 24373.44 | C16: 23624.64 | D16: 23431.2 | E16: 23237.76
A17: 16 | B17: 20311.2 | C17: 19687.2 | D17: 19526 | E17: 19364.8
A18: 17 | B18: 16248.96 | C18: 15749.76 | D18: 15620.8 | E18: 15491.84
A19: 18 | B19: 12186.72 | C19: 11812.32 | D19: 11715.6 | E19: 11618.88 | R19: =IF('B - ISS Payroll Expenses'!D21=0,0,IF('B - ISS Payroll Expenses'!$B$10="Quarterly",0,VLOOKUP('B - ISS Payroll Expenses'!D21,'Administrator Regression Table'!$A$1:$E$22,2))/12) -> 0 | S19: =IF('B - ISS Payroll Expenses'!D21=0,0,IF('B - ISS Payroll Expenses'!$B$10="Quarterly",0,VLOOKUP('B - ISS Payroll Expenses'!D21,'Administrator Regression Table'!$A$1:$E$22,3))/12) -> 0 | T19: =IF('B - ISS Payroll Expenses'!D21=0,0,IF('B - ISS Payroll Expenses'!$B$10="Quarterly",0,VLOOKUP('B - ISS Payroll Expenses'!D21,'Administrator Regression Table'!$A$1:$E$22,4))/12) -> 0 | U19: =IF('B - ISS Payroll Expenses'!D21=0,0,IF('B - ISS Payroll Expenses'!$B$10="Quarterly",0,VLOOKUP('B - ISS Payroll Expenses'!D21,'Administrator Regression Table'!$A$1:$E$22,5))/12) -> 0
A20: 19 | B20: 8124.48 | C20: 7874.88 | D20: 7810.4 | E20: 7745.92
A21: 20 | B21: 4062.24 | C21: 3937.44 | D21: 3905.2 | E21: 3872.96
A22: 21 | B22: 0 | C22: 0 | D22: 0 | E22: 0
R23: =IF('B - ISS Payroll Expenses'!D26=0,0,IF('B - ISS Payroll Expenses'!$B$10="Monthly",VLOOKUP('B - ISS Payroll Expenses'!D26,'Administrator Regression Table'!$A$1:$E$22,2)/12,VLOOKUP('B - ISS Payroll Expenses'!D26,'Administrator Regression Table'!$A$1:$E$22,2)/4)) -> 0 | S23: =IF('B - ISS Payroll Expenses'!D26=0,0,IF('B - ISS Payroll Expenses'!$B$10="Monthly",VLOOKUP('B - ISS Payroll Expenses'!D26,'Administrator Regression Table'!$A$1:$E$22,3)/12,VLOOKUP('B - ISS Payroll Expenses'!D26,'Administrator Regression Table'!$A$1:$E$22,3)/4)) -> 0 | T23: =IF('B - ISS Payroll Expenses'!D26=0,0,IF('B - ISS Payroll Expenses'!$B$10="Monthly",VLOOKUP('B - ISS Payroll Expenses'!D26,'Administrator Regression Table'!$A$1:$E$22,4)/12,VLOOKUP('B - ISS Payroll Expenses'!D26,'Administrator Regression Table'!$A$1:$E$22,4)/4)) -> 0 | U23: =IF('B - ISS Payroll Expenses'!D26=0,0,IF('B - ISS Payroll Expenses'!$B$10="Monthly",VLOOKUP('B - ISS Payroll Expenses'!D26,'Administrator Regression Table'!$A$1:$E$22,5)/12,VLOOKUP('B - ISS Payroll Expenses'!D26,'Administrator Regression Table'!$A$1:$E$22,5)/4)) -> 0
R27: =IF('B - ISS Payroll Expenses'!D31=0,0,IF('B - ISS Payroll Expenses'!$B$10="Quarterly",0,VLOOKUP('B - ISS Payroll Expenses'!D31,'Administrator Regression Table'!$A$1:$E$22,2))/12) -> 0 | S27: =IF('B - ISS Payroll Expenses'!D31=0,0,IF('B - ISS Payroll Expenses'!$B$10="Quarterly",0,VLOOKUP('B - ISS Payroll Expenses'!D31,'Administrator Regression Table'!$A$1:$E$22,3))/12) -> 0 | T27: =IF('B - ISS Payroll Expenses'!D31=0,0,IF('B - ISS Payroll Expenses'!$B$10="Quarterly",0,VLOOKUP('B - ISS Payroll Expenses'!D31,'Administrator Regression Table'!$A$1:$E$22,4))/12) -> 0 | U27: =IF('B - ISS Payroll Expenses'!D31=0,0,IF('B - ISS Payroll Expenses'!$B$10="Quarterly",0,VLOOKUP('B - ISS Payroll Expenses'!D31,'Administrator Regression Table'!$A$1:$E$22,5))/12) -> 0
R31: =IF('B - ISS Payroll Expenses'!D36=0,0,IF('B - ISS Payroll Expenses'!$B$10="Quarterly",0,VLOOKUP('B - ISS Payroll Expenses'!D36,'Administrator Regression Table'!$A$1:$E$22,2))/12) -> 0 | S31: =IF('B - ISS Payroll Expenses'!D36=0,0,IF('B - ISS Payroll Expenses'!$B$10="Quarterly",0,VLOOKUP('B - ISS Payroll Expenses'!D36,'Administrator Regression Table'!$A$1:$E$22,3))/12) -> 0 | T31: =IF('B - ISS Payroll Expenses'!D36=0,0,IF('B - ISS Payroll Expenses'!$B$10="Quarterly",0,VLOOKUP('B - ISS Payroll Expenses'!D36,'Administrator Regression Table'!$A$1:$E$22,4))/12) -> 0 | U31: =IF('B - ISS Payroll Expenses'!D36=0,0,IF('B - ISS Payroll Expenses'!$B$10="Quarterly",0,VLOOKUP('B - ISS Payroll Expenses'!D36,'Administrator Regression Table'!$A$1:$E$22,5))/12) -> 0
R35: =IF('B - ISS Payroll Expenses'!D41=0,0,IF('B - ISS Payroll Expenses'!$B$10="Monthly",VLOOKUP('B - ISS Payroll Expenses'!D41,'Administrator Regression Table'!$A$1:$E$22,2)/12,VLOOKUP('B - ISS Payroll Expenses'!D41,'Administrator Regression Table'!$A$1:$E$22,2)/4)) -> 0 | S35: =IF('B - ISS Payroll Expenses'!D41=0,0,IF('B - ISS Payroll Expenses'!$B$10="Monthly",VLOOKUP('B - ISS Payroll Expenses'!D41,'Administrator Regression Table'!$A$1:$E$22,3)/12,VLOOKUP('B - ISS Payroll Expenses'!D41,'Administrator Regression Table'!$A$1:$E$22,3)/4)) -> 0 | T35: =IF('B - ISS Payroll Expenses'!D41=0,0,IF('B - ISS Payroll Expenses'!$B$10="Monthly",VLOOKUP('B - ISS Payroll Expenses'!D41,'Administrator Regression Table'!$A$1:$E$22,4)/12,VLOOKUP('B - ISS Payroll Expenses'!D41,'Administrator Regression Table'!$A$1:$E$22,4)/4)) -> 0 | U35: =IF('B - ISS Payroll Expenses'!D41=0,0,IF('B - ISS Payroll Expenses'!$B$10="Monthly",VLOOKUP('B - ISS Payroll Expenses'!D41,'Administrator Regression Table'!$A$1:$E$22,5)/12,VLOOKUP('B - ISS Payroll Expenses'!D41,'Administrator Regression Table'!$A$1:$E$22,5)/4)) -> 0
R39: =IF('B - ISS Payroll Expenses'!D46=0,0,IF('B - ISS Payroll Expenses'!$B$10="Quarterly",0,VLOOKUP('B - ISS Payroll Expenses'!D46,'Administrator Regression Table'!$A$1:$E$22,2))/12) -> 0 | S39: =IF('B - ISS Payroll Expenses'!D46=0,0,IF('B - ISS Payroll Expenses'!$B$10="Quarterly",0,VLOOKUP('B - ISS Payroll Expenses'!D46,'Administrator Regression Table'!$A$1:$E$22,3))/12) -> 0 | T39: =IF('B - ISS Payroll Expenses'!D46=0,0,IF('B - ISS Payroll Expenses'!$B$10="Quarterly",0,VLOOKUP('B - ISS Payroll Expenses'!D46,'Administrator Regression Table'!$A$1:$E$22,4))/12) -> 0 | U39: =IF('B - ISS Payroll Expenses'!D46=0,0,IF('B - ISS Payroll Expenses'!$B$10="Quarterly",0,VLOOKUP('B - ISS Payroll Expenses'!D46,'Administrator Regression Table'!$A$1:$E$22,5))/12) -> 0
R43: =IF('B - ISS Payroll Expenses'!D51=0,0,IF('B - ISS Payroll Expenses'!$B$10="Quarterly",0,VLOOKUP('B - ISS Payroll Expenses'!D51,'Administrator Regression Table'!$A$1:$E$22,2))/12) -> 0 | S43: =IF('B - ISS Payroll Expenses'!D51=0,0,IF('B - ISS Payroll Expenses'!$B$10="Quarterly",0,VLOOKUP('B - ISS Payroll Expenses'!D51,'Administrator Regression Table'!$A$1:$E$22,3))/12) -> 0 | T43: =IF('B - ISS Payroll Expenses'!D51=0,0,IF('B - ISS Payroll Expenses'!$B$10="Quarterly",0,VLOOKUP('B - ISS Payroll Expenses'!D51,'Administrator Regression Table'!$A$1:$E$22,4))/12) -> 0 | U43: =IF('B - ISS Payroll Expenses'!D51=0,0,IF('B - ISS Payroll Expenses'!$B$10="Quarterly",0,VLOOKUP('B - ISS Payroll Expenses'!D51,'Administrator Regression Table'!$A$1:$E$22,5))/12) -> 0
R47: =IF('B - ISS Payroll Expenses'!D56=0,0,IF('B - ISS Payroll Expenses'!$B$10="Monthly",VLOOKUP('B - ISS Payroll Expenses'!D56,'Administrator Regression Table'!$A$1:$E$22,2)/12,VLOOKUP('B - ISS Payroll Expenses'!D56,'Administrator Regression Table'!$A$1:$E$22,2)/4)) -> 0 | S47: =IF('B - ISS Payroll Expenses'!D56=0,0,IF('B - ISS Payroll Expenses'!$B$10="Monthly",VLOOKUP('B - ISS Payroll Expenses'!D56,'Administrator Regression Table'!$A$1:$E$22,3)/12,VLOOKUP('B - ISS Payroll Expenses'!D56,'Administrator Regression Table'!$A$1:$E$22,3)/4)) -> 0 | T47: =IF('B - ISS Payroll Expenses'!D56=0,0,IF('B - ISS Payroll Expenses'!$B$10="Monthly",VLOOKUP('B - ISS Payroll Expenses'!D56,'Administrator Regression Table'!$A$1:$E$22,4)/12,VLOOKUP('B - ISS Payroll Expenses'!D56,'Administrator Regression Table'!$A$1:$E$22,4)/4)) -> 0 | U47: =IF('B - ISS Payroll Expenses'!D56=0,0,IF('B - ISS Payroll Expenses'!$B$10="Monthly",VLOOKUP('B - ISS Payroll Expenses'!D56,'Administrator Regression Table'!$A$1:$E$22,5)/12,VLOOKUP('B - ISS Payroll Expenses'!D56,'Administrator Regression Table'!$A$1:$E$22,5)/4)) -> 0
R51: =IF('B - ISS Payroll Expenses'!D61=0,0,IF('B - ISS Payroll Expenses'!$B$10="Quarterly",0,VLOOKUP('B - ISS Payroll Expenses'!D61,'Administrator Regression Table'!$A$1:$E$22,2))/12) -> 0 | S51: =IF('B - ISS Payroll Expenses'!D61=0,0,IF('B - ISS Payroll Expenses'!$B$10="Quarterly",0,VLOOKUP('B - ISS Payroll Expenses'!D61,'Administrator Regression Table'!$A$1:$E$22,3))/12) -> 0 | T51: =IF('B - ISS Payroll Expenses'!D61=0,0,IF('B - ISS Payroll Expenses'!$B$10="Quarterly",0,VLOOKUP('B - ISS Payroll Expenses'!D61,'Administrator Regression Table'!$A$1:$E$22,4))/12) -> 0 | U51: =IF('B - ISS Payroll Expenses'!D61=0,0,IF('B - ISS Payroll Expenses'!$B$10="Quarterly",0,VLOOKUP('B - ISS Payroll Expenses'!D61,'Administrator Regression Table'!$A$1:$E$22,5))/12) -> 0
R55: =IF('B - ISS Payroll Expenses'!D66=0,0,IF('B - ISS Payroll Expenses'!$B$10="Quarterly",0,VLOOKUP('B - ISS Payroll Expenses'!D66,'Administrator Regression Table'!$A$1:$E$22,2))/12) -> 0 | S55: =IF('B - ISS Payroll Expenses'!D66=0,0,IF('B - ISS Payroll Expenses'!$B$10="Quarterly",0,VLOOKUP('B - ISS Payroll Expenses'!D66,'Administrator Regression Table'!$A$1:$E$22,3))/12) -> 0 | T55: =IF('B - ISS Payroll Expenses'!D66=0,0,IF('B - ISS Payroll Expenses'!$B$10="Quarterly",0,VLOOKUP('B - ISS Payroll Expenses'!D66,'Administrator Regression Table'!$A$1:$E$22,4))/12) -> 0 | U55: =IF('B - ISS Payroll Expenses'!D66=0,0,IF('B - ISS Payroll Expenses'!$B$10="Quarterly",0,VLOOKUP('B - ISS Payroll Expenses'!D66,'Administrator Regression Table'!$A$1:$E$22,5))/12) -> 0
R59: =IF('B - ISS Payroll Expenses'!D71=0,0,IF('B - ISS Payroll Expenses'!$B$10="Monthly",VLOOKUP('B - ISS Payroll Expenses'!D71,'Administrator Regression Table'!$A$1:$E$22,2)/12,VLOOKUP('B - ISS Payroll Expenses'!D71,'Administrator Regression Table'!$A$1:$E$22,2)/4)) -> 0 | S59: =IF('B - ISS Payroll Expenses'!D71=0,0,IF('B - ISS Payroll Expenses'!$B$10="Monthly",VLOOKUP('B - ISS Payroll Expenses'!D71,'Administrator Regression Table'!$A$1:$E$22,3)/12,VLOOKUP('B - ISS Payroll Expenses'!D71,'Administrator Regression Table'!$A$1:$E$22,3)/4)) -> 0 | T59: =IF('B - ISS Payroll Expenses'!D71=0,0,IF('B - ISS Payroll Expenses'!$B$10="Monthly",VLOOKUP('B - ISS Payroll Expenses'!D71,'Administrator Regression Table'!$A$1:$E$22,4)/12,VLOOKUP('B - ISS Payroll Expenses'!D71,'Administrator Regression Table'!$A$1:$E$22,4)/4)) -> 0 | U59: =IF('B - ISS Payroll Expenses'!D71=0,0,IF('B - ISS Payroll Expenses'!$B$10="Monthly",VLOOKUP('B - ISS Payroll Expenses'!D71,'Administrator Regression Table'!$A$1:$E$22,5)/12,VLOOKUP('B - ISS Payroll Expenses'!D71,'Administrator Regression Table'!$A$1:$E$22,5)/4)) -> 0

Sheet RES (hidden)
B1: FILE: | C1: =MID(CELL("filename",A1),FIND("[",CELL("filename",A1))+1,FIND(".",CELL("filename",A1),FIND("[",CELL("filename",A1))+1)-FIND("[",CELL("filename",A1))-1) -> 2019 ABC Sample - Cost Report | D1: =MID(CELL("filename",B1),FIND("[",CELL("filename",B1))+1,FIND(".",CELL("filename",B1),FIND("[",CELL("filename",B1))+1)-FIND("[",CELL("filename",B1))-1) -> 2019 ABC Sample - Cost Report | E1: =MID(CELL("filename",C1),FIND("[",CELL("filename",C1))+1,FIND(".",CELL("filename",C1),FIND("[",CELL("filename",C1))+1)-FIND("[",CELL("filename",C1))-1) -> 2019 ABC Sample - Cost Report
B2: PROVIDER ID: | C2: =_C000002 -> 555777999 | D2: =_C000002 -> 555777999 | E2: =_C000002 -> 555777999
B3: PROVIDER NAME: | C3: =_M000001 -> 3S - ABC Residential Services | D3: =_M000001 -> 3S - ABC Residential Services | E3: =_M000001 -> 3S - ABC Residential Services
B4: CITY, ZIP: | C4: =_M000005 -> Small Town, WA 99901 | D4: =_M000005 -> Small Town, WA 99901 | E4: =_M000005 -> Small Town, WA 99901
B5: PURCHASED PROFESSIONAL SERVICES | C5: ='C - Non-ISS Expenses'!$H$9 -> Yes | D5: ='C - Non-ISS Expenses'!$H$9 -> Yes | E5: ='C - Non-ISS Expenses'!$H$9 -> Yes
A6: Line | B6: PROGRAM TYPE | C6: TOTAL SUPPORTED LIVING | D6: TOTAL GROUP HOME & GROUP TRAINING HOME | E6: TOTAL ALL PROGRAMS | F6: ='C - Non-ISS Expenses'!_M000101 -> SL Supported Living | G6: ='C - Non-ISS Expenses'!_M000102 -> GH Group Home | H6: ='C - Non-ISS Expenses'!_M000105 -> GTH Group Training Home
F7: =IF(_M001748="SL Supported Living",1,IF(_M001748="GH Group Home",2,IF(_M001748="GTH Group Training Home",3,0))) -> 1 | G7: =IF(_M001749="SL Supported Living",1,IF(_M001749="GH Group Home",2,IF(_M001749="GTH Group Training Home",3,0))) -> 2 | H7: =IF(_M001752="SL Supported Living",1,IF(_M001752="GH Group Home",2,IF(_M001752="GTH Group Training Home",3,0))) -> 3
A8: 1 | B8: ISS & PROFESSIONAL SERVICES STAFF REGULAR TIME PAYROLL EXPENSES | C8: =SUMIF($F$7:$H$7,1,F8:H8) -> 1247732.175 | D8: =(SUMIF($F$7:$H$7,2,F8:H8))+(SUMIF($F$7:$H$7,3,F8:H8)) -> 827082.9452 | E8: =SUM(F8:H8) -> 2074815.12 | F8: =('B - ISS Payroll Expenses'!$S$73+'B - ISS Payroll Expenses'!$S$74-'B - ISS Payroll Expenses'!$F$73-'B - ISS Payroll Expenses'!$F$74)*(F48/_C002601) -> 1247732.175 | G8: =('B - ISS Payroll Expenses'!$S$73+'B - ISS Payroll Expenses'!$S$74-'B - ISS Payroll Expenses'!$F$73-'B - ISS Payroll Expenses'!$F$74)*(G48/_C002601) -> 464427.889 | H8: =('B - ISS Payroll Expenses'!$S$73+'B - ISS Payroll Expenses'!$S$74-'B - ISS Payroll Expenses'!$F$73-'B - ISS Payroll Expenses'!$F$74)*(H48/_C002601) -> 362655.0563
A9: 2 | B9: ISS & PROFESSIONAL SERVICES STAFF OVERTIME PAYROLL EXPENSES | C9: 76475.89923 | D9: 50693.50077 | E9: 127169.4 | F9: =('B - ISS Payroll Expenses'!$F$73+'B - ISS Payroll Expenses'!$F$74)*(_C002602/_C002601) -> 76475.89923 | G9: =('B - ISS Payroll Expenses'!$F$73+'B - ISS Payroll Expenses'!$F$74)*(_C002603/_C002601) -> 28465.67649 | H9: =('B - ISS Payroll Expenses'!$F$73+'B - ISS Payroll Expenses'!$F$74)*(_C002606/_C002601) -> 22227.82429
A10: 3 | B10: ALLOWABLE GH ADMINISTRATOR ISS REGULAR TIME PAYROLL EXPENSES (GROUP HOME ONLY) | C10: 0 | D10: 0 | E10: 0 | F10: =('B - ISS Payroll Expenses'!$S$75-'B - ISS Payroll Expenses'!$F$75)*(_C002602/_C002601) -> 0 | G10: =('B - ISS Payroll Expenses'!$S$75-'B - ISS Payroll Expenses'!$F$75)*(_C002603/_C002601) -> 0 | H10: =('B - ISS Payroll Expenses'!$S$75-'B - ISS Payroll Expenses'!$F$75)*(_C002606/_C002601) -> 0
A11: 4 | B11: ALLOWABLE GH ADMINISTRATOR ISS OVERTIME PAYROLL EXPENSES (GROUP HOME ONLY) | C11: 0 | D11: 0 | E11: 0 | F11: ='B - ISS Payroll Expenses'!$F$75*(_C002602/_C002601) -> 0 | G11: ='B - ISS Payroll Expenses'!$F$75*(_C002603/_C002601) -> 0 | H11: ='B - ISS Payroll Expenses'!$F$75*(_C002606/_C002601) -> 0
A12: 5 | B12: ALLOWABLE SL/COMB ADMINISTRATOR ISS REGULAR TIME PAYROLL EXPENSES | C12: 0 | D12: 0 | E12: 0 | F12: =('B - ISS Payroll Expenses'!$S$76-'B - ISS Payroll Expenses'!$F$76)*(_C002602/_C002601) -> 0 | G12: =('B - ISS Payroll Expenses'!$S$76-'B - ISS Payroll Expenses'!$F$76)*(_C002603/_C002601) -> 0 | H12: =('B - ISS Payroll Expenses'!$S$76-'B - ISS Payroll Expenses'!$F$76)*(_C002606/_C002601) -> 0
A13: 6 | B13: ALLOWABLE SL/COMB ADMINISTRATOR ISS OVERTIME PAYROLL EXPENSES | C13: 0 | D13: 0 | E13: 0 | F13: ='B - ISS Payroll Expenses'!$F$76*(_C002602/_C002601) -> 0 | G13: ='B - ISS Payroll Expenses'!$F$76*(_C002603/_C002601) -> 0 | H13: ='B - ISS Payroll Expenses'!$F$76*(_C002606/_C002601) -> 0
B14: TOTAL ISS PAYROLL EXPENSES (SCHEDULE B) | C14: =SUM(C8:C13) -> 1324208.074 | D14: 877776.446 | E14: 2201984.52 | F14: 1324208.074 | G14: 492893.5654 | H14: 384882.8805
A15: 7 | B15: AUTHORIZED PURCHASED/CONTRACTED ISS PROFESSIONAL SERVICES (SCHEDULE G) | C15: =SUMIF($F$7:$H$7,1,F15:H15) -> 4892.25 | D15: =(SUMIF($F$7:$H$7,2,F15:H15))+(SUMIF($F$7:$H$7,3,F15:H15)) -> 3701.99 | E15: =SUM(F15:H15) -> 8594.24 | F15: =SUMIF('G - ISS Settlement'!$E$41:$E$43,F7,'G - ISS Settlement'!$C$41:$C$43) -> 4892.25 | G15: =SUMIF('G - ISS Settlement'!$E$41:$E$43,G7,'G - ISS Settlement'!$C$41:$C$43) -> 3701.99 | H15: =SUMIF('G - ISS Settlement'!$E$41:$E$43,H7,'G - ISS Settlement'!$C$41:$C$43) -> 0
B16: TOTAL ISS EXPENSES (SCHEDULE B & SCHEDULE G) | C16: =SUM(C14:C15) -> 1329100.324 | D16: 881478.436 | E16: 2210578.76 | F16: 1329100.324 | G16: 496595.5554 | H16: 384882.8805
A17: 8 | B17: NON-ISS/ ADMINISTRATIVE STAFF REGULAR TIME PAYROLL EXPENSES | C17: =SUMIF($F$7:$H$7,1,F17:H17) -> 13167.25512 | D17: =(SUMIF($F$7:$H$7,2,F17:H17))+(SUMIF($F$7:$H$7,3,F17:H17)) -> 8728.164879 | E17: =SUM(F17:H17) -> 21895.42 | F17: =('B - ISS Payroll Expenses'!$T$73+'B - ISS Payroll Expenses'!$T$74-'B - ISS Payroll Expenses'!$I$73-'B - ISS Payroll Expenses'!$I$74)*(_C002602/_C002601) -> 13167.25512 | G17: =('B - ISS Payroll Expenses'!$T$73+'B - ISS Payroll Expenses'!$T$74-'B - ISS Payroll Expenses'!$I$73-'B - ISS Payroll Expenses'!$I$74)*(_C002603/_C002601) -> 4901.084241 | H17: =('B - ISS Payroll Expenses'!$T$73+'B - ISS Payroll Expenses'!$T$74-'B - ISS Payroll Expenses'!$I$73-'B - ISS Payroll Expenses'!$I$74)*(_C002606/_C002601) -> 3827.080637
A18: 9 | B18: NON-ISS/ ADMINISTRATIVE STAFF OVERTIME PAYROLL EXPENSES | C18: 1187.405642 | D18: 787.0943582 | E18: 1974.5 | F18: =('B - ISS Payroll Expenses'!$I$73+'B - ISS Payroll Expenses'!$I$74)*(_C002602/_C002601) -> 1187.405642 | G18: =('B - ISS Payroll Expenses'!$I$73+'B - ISS Payroll Expenses'!$I$74)*(_C002603/_C002601) -> 441.973291 | H18: =('B - ISS Payroll Expenses'!$I$73+'B - ISS Payroll Expenses'!$I$74)*(_C002606/_C002601) -> 345.1210673
A19: 10 | B19: NON-ISS/ ADMINISTRATIVE GH ADMINISTRATOR REGULAR TIME PAYROLL EXPENSES | C19: 0 | D19: 0 | E19: 0 | F19: =('B - ISS Payroll Expenses'!$T$75-'B - ISS Payroll Expenses'!$I$75)*(_C002602/_C002601) -> 0 | G19: =('B - ISS Payroll Expenses'!$T$75-'B - ISS Payroll Expenses'!$I$75)*(_C002603/_C002601) -> 0 | H19: =('B - ISS Payroll Expenses'!$T$75-'B - ISS Payroll Expenses'!$I$75)*(_C002606/_C002601) -> 0
A20: 11 | B20: NON-ISS/ ADMINISTRATIVE GH ADMINISTRATOR OVERTIME PAYROLL EXPENSES | C20: 0 | D20: 0 | E20: 0 | F20: ='B - ISS Payroll Expenses'!$I$75*(_C002602/_C002601) -> 0 | G20: ='B - ISS Payroll Expenses'!$I$75*(_C002603/_C002601) -> 0 | H20: ='B - ISS Payroll Expenses'!$I$75*(_C002606/_C002601) -> 0
A21: 12 | B21: NON-ISS/ ADMINISTRATIVE SL/COMB ADMINISTRATOR REGULAR TIME PAYROLL EXPENSES | C21: 0 | D21: 0 | E21: 0 | F21: =('B - ISS Payroll Expenses'!$T$76-'B - ISS Payroll Expenses'!$I$76)*(_C002602/_C002601) -> 0 | G21: =('B - ISS Payroll Expenses'!$T$76-'B - ISS Payroll Expenses'!$I$76)*(_C002603/_C002601) -> 0 | H21: =('B - ISS Payroll Expenses'!$T$76-'B - ISS Payroll Expenses'!$I$76)*(_C002606/_C002601) -> 0
A22: 13 | B22: NON-ISS/ ADMINISTRATIVE SL/COMB ADMINISTRATOR OVERTIME PAYROLL EXPENSES | C22: 0 | D22: 0 | E22: 0 | F22: ='B - ISS Payroll Expenses'!$I$76*(_C002602/_C002601) -> 0 | G22: ='B - ISS Payroll Expenses'!$I$76*(_C002603/_C002601) -> 0 | H22: ='B - ISS Payroll Expenses'!$I$76*(_C002606/_C002601) -> 0
B23: TOTAL NON-ISS/ ADMINISTRATIVE PAYROLL EXPENSES (SCHEDULE B) | C23: =SUM(C17:C22) -> 14354.66076 | D23: =SUM(D17:D22) -> 9515.259237 | E23: =SUM(F23:H23) -> 23869.92 | F23: =SUM(F17:F22) -> 14354.66076 | G23: =SUM(G17:G22) -> 5343.057532 | H23: =SUM(H17:H22) -> 4172.201705
A24: 14 | B24: ADMINISTRATIVE/ NON-ISS PAYROLL EXPENSES | C24: =SUMIF($F$7:$H$7,1,F24:H24) -> 129838.285 | D24: =(SUMIF($F$7:$H$7,2,F24:H24))+(SUMIF($F$7:$H$7,3,F24:H24)) -> 44363.02 | E24: =SUM(F24:H24) -> 174201.305 | F24: ='C - Non-ISS Expenses'!_C000276 -> 129838.285 | G24: ='C - Non-ISS Expenses'!_C000277 -> 31108.26 | H24: ='C - Non-ISS Expenses'!_C000280 -> 13254.76
A25: 15 | B25: PROGRAM OPERATIONS EXPENSES | C25: =SUMIF($F$7:$H$7,1,F25:H25) -> 27366.33 | D25: =(SUMIF($F$7:$H$7,2,F25:H25))+(SUMIF($F$7:$H$7,3,F25:H25)) -> 4228.66 | E25: 31594.99 | F25: ='C - Non-ISS Expenses'!F31 -> 27366.33 | G25: ='C - Non-ISS Expenses'!G31 -> 3241.12 | H25: ='C - Non-ISS Expenses'!H31 -> 987.54
A26: 16 | B26: CAPITAL & PROPERTY EXPENSES | C26: =SUMIF($F$7:$H$7,1,F26:H26) -> 48940 | D26: 38446.35 | E26: 87386.35 | F26: ='C - Non-ISS Expenses'!F33 -> 48940 | G26: ='C - Non-ISS Expenses'!G33 -> 25116.37 | H26: ='C - Non-ISS Expenses'!H33 -> 13329.98
A27: 17 | B27: INTEREST & TAX EXPENSES | C27: =SUMIF($F$7:$H$7,1,F27:H27) -> 7878.58 | D27: 928.3 | E27: 8806.88 | F27: ='C - Non-ISS Expenses'!F35 -> 7878.58 | G27: ='C - Non-ISS Expenses'!G35 -> 680.64 | H27: ='C - Non-ISS Expenses'!H35 -> 247.66
B28: TOTAL NON-ISS ADMINISTRATIVE & OPERATING EXPENSES (SCHEDULE C) | C28: =SUM(C24:C27) -> 214023.195 | D28: 87966.33 | E28: 301989.525 | F28: 214023.195 | G28: 60146.39 | H28: 27819.94
A29: 18 | B29: MAINTENANCE/LAUNDRY/HOUSEKEEPING/DIETARY (GROUP HOME ONLY) | C29: =SUMIF($F$7:$H$7,1,F29:H29) -> 15731.98 | D29: 20831.07 | E29: 36563.05 | F29: ='C - Non-ISS Expenses'!F38 -> 15731.98 | G29: ='C - Non-ISS Expenses'!G38 -> 19065.73 | H29: ='C - Non-ISS Expenses'!H38 -> 1765.34
A30: 19 | B30: TRANSPORTATION EXPENSES | C30: =SUMIF($F$7:$H$7,1,F30:H30) -> 9264.15 | D30: 20654.53 | E30: 29918.68 | F30: ='C - Non-ISS Expenses'!F40 -> 9264.15 | G30: ='C - Non-ISS Expenses'!G40 -> 17500.14 | H30: ='C - Non-ISS Expenses'!H40 -> 3154.39
A31: 20 | B31: OTHER NON-ISS CLIENT RELATED EXPENSES | C31: =SUMIF($F$7:$H$7,1,F31:H31) -> 48041.365 | D31: 29251.35 | E31: 77292.715 | F31: ='C - Non-ISS Expenses'!F42 -> 48041.365 | G31: ='C - Non-ISS Expenses'!G42 -> 23814.59 | H31: ='C - Non-ISS Expenses'!H42 -> 5436.76
B32: TOTAL NON-ISS CLIENT RELATED EXPENSES (SCHEDULE C) | C32: =SUM(C29:C31) -> 73037.495 | D32: 70736.95 | E32: 143774.445 | F32: 73037.495 | G32: 60380.46 | H32: 10356.49
B33: TOTAL NON-ISS/ ADMINISTRATIVE EXPENSES (SCHEDULE B & SCHEDULE C) | C33: =C23+C28+C32 -> 301415.3508 | D33: 168218.5392 | E33: 469633.89 | F33: 301415.3508 | G33: 125869.9075 | H33: 42348.6317
B34: TOTAL PROGRAM EXPENSES (SCHEDULE B, C & G) | C34: =C16+C33 -> 1630515.675 | D34: 1049696.975 | E34: 2680212.65 | F34: 1630515.675 | G34: 622465.463 | H34: 427231.5123
A35: 21 | B35: REVENUE FOR SERVICES PROVIDED | C35: =SUMIF($F$7:$H$7,1,F35:H35) -> 1622205.64 | D35: 1067030.67 | E35: 2689236.31 | F35: ='D - Revenue'!F8 -> 1622205.64 | G35: ='D - Revenue'!G8 -> 608645.42 | H35: ='D - Revenue'!H8 -> 458385.25
A36: 22 | B36: OTHER OPERATING REVENUE | C36: 15750 | D36: 4200 | E36: 19950 | F36: ='D - Revenue'!F10 -> 15750 | G36: ='D - Revenue'!G10 -> 2000 | H36: ='D - Revenue'!H10 -> 2200
A37: 23 | B37: NON OPERATING REVENUE | C37: 1032 | D37: 1200 | E37: 2232 | F37: ='D - Revenue'!F12 -> 1032 | G37: ='D - Revenue'!G12 -> 744 | H37: ='D - Revenue'!H12 -> 456
B38: TOTAL REVENUES (SCHEDULE D) | C38: =SUM(C35:C37) -> 1638987.64 | D38: 1072430.67 | E38: 2711418.31 | F38: 1638987.64 | G38: 611389.42 | H38: 461041.25
A39: 24 | B39: ANNUAL ISS TIERED REIMBURSEMENT | C39: =SUMIF($F$7:$H$7,1,F39:H39) -> 1259031.49 | D39: =(SUMIF($F$7:$H$7,2,F39:H39))+(SUMIF($F$7:$H$7,3,F39:H39)) -> 850506.34 | E39: 2109537.83 | F39: =VLOOKUP($F$7,RES!$A$60:$AU$62,33) -> 1259031.49 | G39: =VLOOKUP($G$7,RES!$A$60:$AU$62,33) -> 476359.44 | H39: =VLOOKUP($H$7,RES!$A$60:$AU$62,33) -> 374146.9
A40: 25 | B40: ANNUAL ISS CRST REIMBURSEMENT | C40: =SUMIF($F$7:$H$7,1,F40:H40) -> 23429.89 | D40: =(SUMIF($F$7:$H$7,2,F40:H40))+(SUMIF($F$7:$H$7,3,F40:H40)) -> 15811.52 | E40: 39241.41 | F40: =VLOOKUP($F$7,RES!$A$60:$AU$62,34) -> 23429.89 | G40: =VLOOKUP($G$7,RES!$A$60:$AU$62,34) -> 8858.27 | H40: =VLOOKUP($H$7,RES!$A$60:$AU$62,34) -> 6953.25
A41: 26 | B41: ANNUAL ISS HOLD HARMLESS REIMBURSMENT | C41: =SUMIF($F$7:$H$7,1,F41:H41) -> 31554.1 | D41: =(SUMIF($F$7:$H$7,2,F41:H41))+(SUMIF($F$7:$H$7,3,F41:H41)) -> 14409.35 | E41: 45963.45 | F41: =VLOOKUP($F$7,RES!$A$60:$AU$62,35) -> 31554.1 | G41: =VLOOKUP($G$7,RES!$A$60:$AU$62,35) -> 9098.6 | H41: =VLOOKUP($H$7,RES!$A$60:$AU$62,35) -> 5310.75
B42: TOTAL ISS TIERED REIMBURSEMENTS (RECONCILED SCHEDULE H) | C42: =SUM(C39:C41) -> 1314015.48 | D42: =SUM(D39:D41) -> 880727.21 | E42: =SUM(F42:H42) -> 2194742.69 | F42: =SUM(F39:F41) -> 1314015.48 | G42: =SUM(G39:G41) -> 494316.31 | H42: =SUM(H39:H41) -> 386410.9
A43: 27 | B43: TOTAL ISS TIERED REIMBURSEMENTS | C43: =SUMIF($F$7:$H$7,1,F43:H43) -> 1314015.48 | D43: =(SUMIF($F$7:$H$7,2,F43:H43))+(SUMIF($F$7:$H$7,3,F43:H43)) -> 880727.21 | E43: =SUM(F43:H43) -> 2194742.69 | F43: =SUMIF('G - ISS Settlement'!E9:E11,F7,'G - ISS Settlement'!C9:C11) -> 1314015.48 | G43: =SUMIF('G - ISS Settlement'!E9:E11,RES!G7,'G - ISS Settlement'!C9:C11) -> 494316.31 | H43: =SUMIF('G - ISS Settlement'!E9:E11,RES!H7,'G - ISS Settlement'!C9:C11) -> 386410.9
A44: 27 | B44: PROFESSIONAL SERVICES REIMBURSED | C44: =SUMIF($F$7:$H$7,1,F44:H44) -> 14299.15 | D44: =(SUMIF($F$7:$H$7,2,F44:H44))+(SUMIF($F$7:$H$7,3,F44:H44)) -> 0 | E44: =SUM(F44:H44) -> 14299.15 | F44: =SUMIF('G - ISS Settlement'!E27:E32,F7,'G - ISS Settlement'!C27:C32) -> 14299.15 | G44: =SUMIF('G - ISS Settlement'!E27:E32,G7,'G - ISS Settlement'!C27:C32) -> 0 | H44: =SUMIF('G - ISS Settlement'!E27:E32,H7,'G - ISS Settlement'!C27:C32) -> 0
A45: 28 | B45: NURSE DELEGATION REIMBURSED | C45: 3437 | D45: 1853.5 | E45: 5290.5 | F45: =SUMIF('G - ISS Settlement'!E15:E17,F7,'G - ISS Settlement'!C15:C17) -> 3437 | G45: =SUMIF('G - ISS Settlement'!E15:E17,RES!G7,'G - ISS Settlement'!C15:C17) -> 1165.87 | H45: =SUMIF('G - ISS Settlement'!E15:E17,RES!H7,'G - ISS Settlement'!C15:C17) -> 687.63
A46: 29 | B46: STAFF ADD ON REIMBURSEMENTS | C46: 251.52 | D46: =(SUMIF($F$7:$H$7,2,F46:H46))+(SUMIF($F$7:$H$7,3,F46:H46)) -> 362.85 | E46: =SUM(F46:H46) -> 614.37 | F46: =SUMIF('G - ISS Settlement'!E18:E20,F7,'G - ISS Settlement'!C18:C20) -> 251.52 | G46: =SUMIF('G - ISS Settlement'!E18:E20,G7,'G - ISS Settlement'!C18:C20) -> 312.85 | H46: =SUMIF('G - ISS Settlement'!E18:E20,H7,'G - ISS Settlement'!C18:C20) -> 50
A47: 29 | B47: COCA COST OF CARE ADJUSTMENTS | C47: 0 | D47: 0 | E47: 0 | F47: =SUMIF('G - ISS Settlement'!E21:E23,F7,'G - ISS Settlement'!C21:C23) -> 0 | G47: =SUMIF('G - ISS Settlement'!E21:E23,G7,'G - ISS Settlement'!C21:C23) -> 0 | H47: =SUMIF('G - ISS Settlement'!E21:E23,H7,'G - ISS Settlement'!C21:C23) -> 0
B48: TOTAL ISS REIMBURSEMENTS (SCHEDULE G) | C48: =SUM(C43:C47) -> 1332003.15 | D48: =SUM(D43:D47) -> 882943.56 | E48: =SUM(F48:H48) -> 2214946.71 | F48: =SUM(F43:F47) -> 1332003.15 | G48: =SUM(G43:G47) -> 495795.03 | H48: =SUM(H43:H47) -> 387148.53
B49: TOTAL PRELIMINRY SETTLEMENT - ISS REIMBURSEMENTS MINUS ISS EXPENSES (SCHEDULE G) | C49: =IF(C48-C16<=0,0,C48-C16) -> 2902.825987 | D49: =IF(D48-D16<=0,0,D48-D16) -> 1465.124013 | E49: =(E48-E16) -> 4367.95 | F49: =(F48-F16) -> 2902.825987 | G49: =(G48-G16) -> -800.5254406 | H49: =(H48-H16) -> 2265.649454
A50: 31 | B50: ANNUAL NON-ISS/ AMININISTRATIVE REIMBURESMENTS | C50: =SUMIF($F$7:$H$7,1,F50:H50) -> 228651.96 | D50: =(SUMIF($F$7:$H$7,2,F50:H50))+(SUMIF($F$7:$H$7,3,F50:H50)) -> 175071.15 | E50: =SUM(F50:H50) -> 403723.11 | F50: =VLOOKUP($F$7,RES!$A$60:$AU$62,38) -> 228651.96 | G50: =VLOOKUP($G$7,RES!$A$60:$AU$62,38) -> 108506.1 | H50: =VLOOKUP($H$7,RES!$A$60:$AU$62,38) -> 66565.05
A51: 32 | B51: ANNUAL NON-ISS/ ADMINISTRATIVE HOLD HARMLESS | C51: =SUMIF($F$7:$H$7,1,F51:H51) -> 10930.08 | D51: =(SUMIF($F$7:$H$7,2,F51:H51))+(SUMIF($F$7:$H$7,3,F51:H51)) -> 4991.28 | E51: =SUM(F51:H51) -> 15921.36 | F51: =VLOOKUP($F$7,RES!$A$60:$AU$62,39) -> 10930.08 | G51: =VLOOKUP($G$7,RES!$A$60:$AU$62,39) -> 3151.68 | H51: =VLOOKUP($H$7,RES!$A$60:$AU$62,39) -> 1839.6
A52: 33 | B52: ANNUAL NON-ISS/ ADMINISTRATIVE CRST REIMBURSEMENTS | C52: =SUMIF($F$7:$H$7,1,F52:H52) -> 5877.91 | D52: =(SUMIF($F$7:$H$7,2,F52:H52))+(SUMIF($F$7:$H$7,3,F52:H52)) -> 3963.53 | E52: 9841.44 | F52: =VLOOKUP($F$7,RES!$A$60:$AU$62,40) -> 5877.91 | G52: =VLOOKUP($G$7,RES!$A$60:$AU$62,40) -> 2218.83 | H52: =VLOOKUP($H$7,RES!$A$60:$AU$62,40) -> 1744.7
A53: 34 | B53: ANNUAL NON-ISS TRANSPORTATION REIMBURSEMENTS | C53: =SUMIF($F$7:$H$7,1,F53:H53) -> 18381.86 | D53: =(SUMIF($F$7:$H$7,2,F53:H53))+(SUMIF($F$7:$H$7,3,F53:H53)) -> 0 | E53: 18381.86 | F53: =VLOOKUP($F$7,RES!$A$60:$AU$62,41) -> 18381.86 | G53: =VLOOKUP($G$7,RES!$A$60:$AU$62,41) -> 0 | H53: =VLOOKUP($H$7,RES!$A$60:$AU$62,41) -> 0
A54: 35 | B54: ANNUAL NON-ISS OTHER REIMBURSEMENTS | C54: =SUMIF($F$7:$H$7,1,F54:H54) -> 30049.2 | D54: =(SUMIF($F$7:$H$7,2,F54:H54))+(SUMIF($F$7:$H$7,3,F54:H54)) -> 2277.5 | E54: 32326.7 | F54: =VLOOKUP($F$7,RES!$A$60:$AU$62,42) -> 30049.2 | G54: =VLOOKUP($G$7,RES!$A$60:$AU$62,42) -> 452.5 | H54: =VLOOKUP($H$7,RES!$A$60:$AU$62,42) -> 1825
B55: TOTAL NON-ISS/ADMINISTRATIVE REIMBURSEMENTS (RECONCILED SCHEDULE H) | C55: =SUM(C50:C54) -> 293891.01 | D55: 186303.46 | E55: 480194.47 | F55: 293891.01 | G55: 114329.11 | H55: 71974.35
B56: NET NON-ISS/ ADMIN INCOME/LOSS (RECONCILED SCHEDULE H LESS SCHEDULE B & C EXPENSES) | C56: =C55-C33 -> -7524.340763 | D56: 18084.92076 | E56: 10560.58 | F56: -7524.340763 | G56: -11540.79753 | H56: 29625.7183
A57: 36 | B57: CLIENT DAYS | C57: =SUMIF($F$7:$H$7,1,F57:H57) -> 6506 | D57: =(SUMIF($F$7:$H$7,2,F57:H57))+(SUMIF($F$7:$H$7,3,F57:H57)) -> 2971 | E57: 9477 | F57: =VLOOKUP(RES!F7,RES!$A$60:$AU$62,47) -> 6506 | G57: =VLOOKUP(RES!G7,RES!$A$60:$AU$62,47) -> 1876 | H57: =VLOOKUP(RES!H7,RES!$A$60:$AU$62,47) -> 1095
A58: 37 | B58: NUMBER OF CLIENTS | C58: =SUMIF($F$7:$H$7,1,F58:H58) -> 23 | D58: =(SUMIF($F$7:$H$7,2,F58:H58))+(SUMIF($F$7:$H$7,3,F58:H58)) -> 10 | E58: 33 | F58: =VLOOKUP(RES!F7,RES!$A$60:$AU$62,11) -> 23 | G58: =VLOOKUP(RES!G7,RES!$A$60:$AU$62,11) -> 7 | H58: =VLOOKUP(RES!H7,RES!$A$60:$AU$62,11) -> 3
A60: 1 | E60: SL Supported Living | J60: 6506 | K60: 23 | V60: 40.675 | Y60: 6726.155 | AE60: 1510.8 | AF60: 8236.955 | AG60: 1259031.49 | AH60: 23429.89 | AI60: 31554.1 | AJ60: 14299.15 | AK60: 1328314.63 | AL60: 228651.96 | AM60: 10930.08 | AN60: 5877.91 | AO60: 18381.86 | AP60: 30049.2 | AQ60: 293891.01 | AR60: 1622205.64 | AS60: 1622205.64 | AT60: 0 | AU60: 6506
A61: 2 | E61: GH Group Home | J61: 1876 | K61: 7 | V61: 0 | Y61: 2600.26 | AE61: 609.92 | AF61: 3210.18 | AG61: 476359.44 | AH61: 8858.27 | AI61: 9098.6 | AJ61: 0 | AK61: 494316.31 | AL61: 108506.1 | AM61: 3151.68 | AN61: 2218.83 | AO61: 0 | AP61: 452.5 | AQ61: 114329.11 | AR61: 608645.42 | AS61: 608645.42 | AT61: 0 | AU61: 1876
A62: 3 | E62: GTH Group Training Home | J62: 1095 | K62: 3 | V62: 0 | Y62: 1058.66 | AE62: 197.19 | AF62: 1255.85 | AG62: 374146.9 | AH62: 6953.25 | AI62: 5310.75 | AJ62: 0 | AK62: 386410.9 | AL62: 66565.05 | AM62: 1839.6 | AN62: 1744.7 | AO62: 0 | AP62: 1825 | AQ62: 71974.35 | AR62: 458385.25 | AS62: 458385.25 | AT62: 0 | AU62: 1095

Sheet ReadMe
B2: DDA Residential Programs Cost Report General Guidelines
B4: 1. For 2019, a revised cost report has been developed to accomodate the tiered rate methodology system implemented 1/1/19. The department no longer settles on ISS hours, just ISS reimbursements. Agencies no longer need to track the hours employees attend CRST training (formerly 1163 training) as 80% of these funds will become part of the ISS settlement beginning in 2019, while 20% will remain in the Non-ISS/Admin cost center. The overtime consideration credit will not be extended to 2019 settlements because we no longer settle on hours. Schedule C used for reporting Non-ISS expenses does not provide a way for allocating costs between contracted and non-contracted. If an agency needs to allocate Non-ISS/Administrative costs they can use the (optional) Schedule I to do so. Schedule I can also be used to track ISS reimbursements recieived from COCA's. Schedule A must be revised with the current date each time a cost report is submitted.
B6: 2. The completed cost report must be submitted in excel format using the 12/2019 revised cost report template. The cost report schedules (A, B, C, D, E, F, & G) are all in a single file. The completed report is to be emailed to both your resource manager and rate analyst (see below for rate analyst). The department no longer accepts Cost Report templates and survey templates from previous years. The current year cost report templates and related materials are available on the web. In addition, cost reports received in PDF or by mail cannot be accepted; only the signed Schedule A is to be scanned as PDF and attached to the email submitting the cost report. If scanning Schedule A is not possible, the signed form (Schedule A only) may be mailed or faxed to your regional resource manager. The resource manager will forward the signed Schedule A to the rates department if mailed or faxed.
B8: 3. Providers are to fill in cells that are formatted white. Cells that are formatted in yellow are locked and cannot be changed. Several places throughout the cost report, providers will select from a drop down list instead of typing in their information. Do not copy and paste while using this form.
B10: 4. Do not include client names, identification numbers, or identifying employee information in the cost report. If you use the optional form, Schedule H - Rate History, do not submit it with your cost report. This form, once complete, will list client names and identification numbers. The form is a separate file from the cost report template and providers have the option of using it to complete their cost report. Providers that choose to use this optional form will need to enter the necessary information throughout the year using their Exhibit C's and COCA's.
B12: 5. On Schedule B, ISS Payroll Expenses, providers must report all payroll costs for staff and eligible Administrators that work both contracted & non-contracted business in an ISS/direct care and/or Administrative capacity to allocate employer paid taxes and benefits, and to determine the percentage of Administrator compensation that can be claimed as ISS if eligible. On Schedule C, non-ISS Expenses, agencies are no longer able to allocate expenses between contracted, non-contracted, and administrative expenses. Agencies that need to allocate non-ISS costs will need to do so outside of the cost report. Providers can use the optional Schedule I - Allocations, to allocate expenses that are no longer able to be done within the cost report.
B14: 6. Review the report before submitting to ensure all required information is both accurate and complete. It is also recommended to print preview before printing as some printers allow different margins or use slightly different font sizes that may cause schedules to not fit as they were designed.
B16: 7. It is recommended that the cost report preparer refer to the cost reporting instructions, DDA policy 6.04, the Chart of Accounts, PowerPoint Presentation and template samples while completing their cost report.
B18: 8. On Schedule A, please include your current contact information for your agency and the cost report preparer, including email addresses.
B20: 9. Each schedule (A through G) is on a separate tab. Move from schedule to schedule by clicking on the appropriate tab. If additional tabs are needed for Schedule E - Residential Staffing, please contact your rates analyst.
B22: 10. There are several places throughout the schedules where you will find a small red triangle in the upper right corner of a cell. As you pass the mouse cursor over the triangle, an explanation of the information required or relative information for that cell will appear in a comment box.
B24: 11. If you have any trouble or have questions about using the spreadsheet, or if you find any errors in logic, line or column references or anything else that requires attention, please feel free to contact any of the individuals listed below.
B26: IMPORTANT DATES
B27: Extension Requests must be received by March 15 March 31 - Cost Reports Due | C27: April 30 - Extension Due Date
B29: DD Rates Contact Information | C29: Telephone | D29: E-mail address
B30: Ken Callaghan, DDA Rates Manager | C30: (360) 725-3206 | D30: kenneth.callaghan@dshs.wa.gov
B31: Serena Clark, DDA Program Manager | C31: (360) 725-2476 | D31: serena.clark@dshs.wa.gov
B32: Tod Johnson, Analyst - Regions 1 & SOLA | C32: (360) 725-2347 | D32: tod.johnson@dshs.wa.gov
B33: Samantha (Sam) Everett, Analyst - LSR & Regions 2 & 3 | C33: (360) 725-2441 | D33: samantha.everett@dshs.wa.gov
B34: Tammy Paulk, Analyst - ICF/ID & RHC | C34: (360) 725-2498 | D34: tammy.paulk@dshs.wa.gov

Sheet A - General Info & Cert
B1: SCHEDULE A
B4: PART A - PROVIDER IDENTIFYING INFORMATION
B5: 1. PROVIDER AGENCY NAME | D5: 2. PROVIDER ONE ID
B6: 3S - ABC Residential Services | D6: =IF(_M000001="","",VLOOKUP(_M000001,Lists!$A$4:$B$138,2,FALSE)) -> 555777999
B7: 3. PROVIDER MAILING ADDRESS | C7: 4. CITY, ZIP | D7: 5. PROVIDER PHONE NUMBER
B8: 123 Main Street | C8: Small Town, WA 99901 | D8: 360-555-5555
B9: 6. ADMINISTRATOR | C9: 7. E-MAIL ADDRESS | D9: 8. DDA REGION ID
B10: Joe Smith | C10: jsmith@gmail.com | D10: =LEFT(_M000001,2) -> 3S
B11: 9. HOME OFFICE/CORPORATE NAME (please indicate if NONE or SAME AS ABOVE)
B12: same as above
B13: 10. HOME OFFICE MAILING ADDRESS | C13: 11. CITY AND ZIP | D13: 12. HOME OFFICE PHONE No.
B15: 13. COST REPORT PREPARER | C15: 14. FIRM NAME
B16: Sally Tenkey | C16: Tenkey Accounting
B17: 15. REPORT CONTACT INDIVIDUAL(S) | C17: 16. CONTACT PHONE # | D17: 17. CONTACT e-mail Address
B18: Sally Tenkey | C18: 360-123-4567 | D18: Sally@TenkeyAccounting.comm
B19: 18. COST REPORT PERIOD | D19: 19. REPORTING PURPOSE
B20: 2019-01-01 | C20: 2019-12-31 | D20: Cost Report
B21: FROM: | C21: TO:
B22: PART B. - CERTIFICATION
B23: MISREPRESENTATION OR FALSIFICATION OF ANY INFORMATION CONTAINED IN THIS COST REPORT MAY BE PUNISHABLE BY FINE AND/OR IMPRISONMENT UNDER STATE OR FEDERAL LAW
C24: CERTIFICATION
B25: I HEREBY CERTIFY under penalty of perjury that I have read the above statement and have examined the accompanying cost report and supporting schedules prepared for:
C26: ABC Residential Services, Inc.
C27: (Provider Name)
B28: and I attest, it is a true, correct and complete representation of actual costs related to client supports prepared in accordance with applicable instructions provided by DDA, except as noted.
C29: Joe Smith
C30: PERSON SIGNING MUST HAVE AUTHORITY TO BIND THE PROVIDER LISTED
C31: Administrator | D31: 2020-03-31
C32: TITLE | D32: DATE
B35: DSHS/DDA Schedule A (Rev. 12/2019)

Sheet B - ISS Payroll Expenses
B1: SCHEDULE B
D3: MONTHLY OR QUARTERLY PAYROLL REPORTING | T3: =_M000001 -> 3S - ABC Residential Services
T4: PROVIDER NAME
B10: Monthly | C10: Reporting Period (Select from drop down list) | D10: PROVIDER MUST MAINTAIN SUPPORTING PAYROLL RECORDS FOR AMOUNTS REPORTED EACH MONTH/QUARTER (BY EMPLOYEE) - AVAILABLE UPON REQUEST
B11: COL. A | C11: COL. B | D11: COL. C | E11: COL. D | F11: COL. E | G11: COL. F | H11: COL. G | I11: COL. H | J11: COL. I | K11: COL. J | L11: COL. K | M11: COL. L | N11: COL. M | O11: COL. N | P11: COL. O | Q11: COL. P | R11: COL. Q | S11: COL. R | T11: COL. S | U11: COL. T
B12: MONTH / QUARTER | C12: EMPLOYEE TYPE | D12: ISS FTE'S | E12: ISS GROSS PAYROLL FOR STAFF (REGUALAR TIME) | F12: ISS GROSS PAYROLL FOR STAFF (OVERTIME) | G12: ISS % OF TOTAL GROSS PAYROLL | H12: ADMINISTRATIVE/ NON-ISS GROSS PAYROLL FOR STAFF (REGUALAR TIME) | I12: ADMINISTRATIVE/ NON-ISS GROSS PAYROLL FOR STAFF (OVERTIME) | J12: ADMINISTRATIVE/ NON-ISS % OF TOTAL GROSS PARYOLL | K12: GROSS PAYROLL FOR NON-CONTRACTED BUSINESS (REGULAR & OT) | L12: NON-CONTRACTED % OF TOTAL GROSS PAYROLL | M12: GROSS PAYROLL FOR PAID TIME OFF (HOLIDAYS, VACATION &/OR SICK LEAVE) | N12: GROSS PAYROLL OTHER COMPENSATION | O12: TOTAL MONTHLY GROSS PAYROLL | P12: TOTAL EMPLOYER PAID PAYROLL TAXES (SOCIAL SECURITY & MEDICARE, FUTA, SUTA, L&I) & ISS PORTION OF B&O TAXES | Q12: TOTAL EMPLOYER PAID TAXABLE & NON-TAXABLE FRINGE BENEFITS (AS DESCRIBED BY THE IRS) | R12: TOTAL MONTHLY GROSS PAYROLL INCLUDING EMPLOYER PAID TAXES & BENEFITS | S12: TOTAL ISS PAYROLL COSTS | T12: TOTAL NON-ISS PAYROLL COSTS | U12: TOTAL NON-CONTRACTED PAYROLL COSTS
A13: 1 | B13: JANUARY | C13: ISS & PROFESSIONAL SERVICES STAFF (CONTRACTED ISS JOB DUTIES ONLY) | D13: =ROUNDDOWN((E13+E14)/VLOOKUP('Administrator Regression Table'!$P$1,'Administrator Regression Table'!$M$1:$N$9,2),0) -> 40 | E13: =109417.06+4800 -> 114217.06 | F13: 10597.45 | G13: =IF((E13+F13)<=0,0,SUM(E13+F13)/SUM(E13+F13+H13+I13+K13)) -> 1 | H13: 0 | I13: 0 | J13: =IF((H13+I13)<=0,0,SUM(H13+I13)/SUM(E13+F13+H13+I13+K13)) -> 0 | K13: 0 | L13: =IF(K13<=0,0,K13/SUM(E13+F13+H13+I13+K13)) -> 0 | M13: 10437.06 | N13: 0 | O13: =SUM(E13+F13+H13+I13+M13+N13+K13) -> 135251.57 | P13: 23217.83 | Q13: 5365.51 | R13: =SUM(O13:Q13) -> 163834.91 | S13: =ROUND(SUM(E13+F13),2)+ROUND(SUM(M13+N13+P13+Q13)*G13,2) -> 163834.91 | T13: 0 | U13: =K13+ROUND(SUM(M13+N13+P13+Q13)*L13,2) -> 0
A14: 2 | B14: JANUARY | C14: ISS & ADMINISTRATIVE OR NON-CONTRACTED STAFF (STAFF PERFORMS CONTRACTED & NON-CONTRACTED AND/OR ADMINSTRATIVE WORK) | E14: 17073.13 | F14: 0 | G14: =IF((E14+F14)<=0,0,SUM(E14+F14)/SUM(E14+F14+H14+I14+K14)) -> 0.8400936087 | H14: =1727.09-179.5 -> 1547.59 | I14: 179.5 | J14: =IF((H14+I14)<=0,0,SUM(H14+I14)/SUM(E14+F14+H14+I14+K14)) -> 0.08498250003 | K14: 1522.67 | L14: =IF(K14<=0,0,K14/SUM(E14+F14+H14+I14+K14)) -> 0.07492389124 | M14: 818.37 | N14: 0 | O14: =SUM(E14+F14+H14+I14+M14+N14+K14) -> 21141.26 | P14: 1788.48 | Q14: 476.94 | R14: =SUM(O14:Q14) -> 23406.68 | S14: =ROUND(SUM(E14+F14),2)+ROUND(SUM(M14+N14+P14+Q14)*G14,2) -> 19663.8 | T14: =ROUND(SUM(H14+I14),2)+ROUND(SUM(M14+N14+P14+Q14)*J14,2) -> 1989.16 | U14: =K14+ROUND(SUM(M14+N14+P14+Q14)*L14,2) -> 1753.72
A15: 3 | B15: JANUARY | C15: GH ONLY - ADMINISTRATOR PAYROLL | E15: 0 | F15: 0 | G15: =IF((E15+F15)<=0,0,SUM(E15+F15)/SUM(E15+F15+H15+I15+K15)) -> 0 | H15: 0 | I15: 0 | J15: =IF((H15+I15)<=0,0,SUM(H15+I15)/SUM(E15+F15+H15+I15+K15)) -> 0 | K15: 0 | L15: =IF(K15<=0,0,K15/SUM(E15+F15+H15+I15+K15)) -> 0 | M15: 0 | N15: 0 | O15: =SUM(E15+F15+H15+I15+M15+N15+K15) -> 0 | P15: 0 | Q15: 0 | R15: =SUM(O15:Q15) -> 0 | S15: =ROUND(SUM(E15+F15),2)+ROUND(SUM(M15+N15+P15+Q15)*G15,2) -> 0 | T15: =ROUND(SUM(H15+I15),2)+ROUND(SUM(M15+N15+P15+Q15)*J15,2) -> 0 | U15: =K15+ROUND(SUM(M15+N15+P15+Q15)*L15,2) -> 0
A16: 4 | B16: JANUARY | C16: ADMINISTRATOR ISS PAYROLL FOR SL & COMBINED SL/GH AGENCIES WITH 20 OR FEWER ISS FTE'S | D16: =SUM(D13:D14) -> 40 | E16: 0 | F16: 0 | G16: =IF((E16+F16)<=0,0,SUM(E16+F16)/SUM(E16+F16+H16+I16+K16)) -> 0 | H16: 0 | I16: 0 | J16: =IF((H16+I16)<=0,0,SUM(H16+I16)/SUM(E16+F16+H16+I16+K16)) -> 0 | K16: 0 | L16: =IF(K16<=0,0,K16/SUM(E16+F16+H16+I16+K16)) -> 0 | M16: 0 | N16: 0 | O16: =SUM(E16+F16+H16+I16+M16+N16+K16) -> 0 | P16: 0 | Q16: 0 | R16: =SUM(O16:Q16) -> 0 | S16: =IF(G16=0,0,IF((M16+N16+P16+Q16)*G16+(E16+F16)<(HLOOKUP('Administrator Regression Table'!$Q$1,'Administrator Regression Table'!$R$1:$U$63,15)*G16),((M16+N16+P16+Q16)*G16+(E16+F16)),(HLOOKUP('Administrator Regression Table'!$Q$1,'Administrator Regression Table'!$R$1:$U$63,15)*G16))) -> 0 | T16: =R16-U16-S16 -> 0 | U16: =K16+ROUND(SUM(M16+N16+P16+Q16)*L16,2) -> 0
A17: 5 | B17: JANUARY TOTAL | E17: =SUM(E13:E16) -> 131290.19 | F17: =SUM(F13:F16) -> 10597.45 | H17: =SUM(H13:H16) -> 1547.59 | I17: =SUM(I13:I16) -> 179.5 | K17: =SUM(K13:K16) -> 1522.67 | M17: =SUM(M13:M16) -> 11255.43 | N17: 0 | O17: 156392.83 | P17: 25006.31 | Q17: 5842.45 | R17: 187241.59 | S17: 183498.71 | T17: 1989.16 | U17: 1753.72
A18: 6 | B18: FEBRUARY | C18: ISS & PROFESSIONAL SERVICES STAFF (CONTRACTED ISS JOB DUTIES ONLY) | D18: =ROUNDDOWN((E18+E19)/VLOOKUP('Administrator Regression Table'!$P$1,'Administrator Regression Table'!$M$1:$N$9,2),0) -> 40 | E18: 114217.06 | F18: 10597.45 | G18: =IF((E18+F18)<=0,0,SUM(E18+F18)/SUM(E18+F18+H18+I18+K18)) -> 1 | H18: 0 | I18: 0 | J18: =IF((H18+I18)<=0,0,SUM(H18+I18)/SUM(E18+F18+H18+I18+K18)) -> 0 | K18: 0 | L18: =IF(K18<=0,0,K18/SUM(E18+F18+H18+I18+K18)) -> 0 | M18: 10437.06 | N18: 0 | O18: =SUM(E18+F18+H18+I18+M18+N18+K18) -> 135251.57 | P18: 23217.83 | Q18: 5365.51 | R18: =SUM(O18:Q18) -> 163834.91 | S18: =ROUND(SUM(E18+F18),2)+ROUND(SUM(M18+N18+P18+Q18)*G18,2) -> 163834.91 | T18: 0 | U18: =K18+ROUND(SUM(M18+N18+P18+Q18)*L18,2) -> 0
A19: 7 | B19: FEBRUARY | C19: ISS & ADMINISTRATIVE OR NON-CONTRACTED STAFF (STAFF PERFORMS CONTRACTED & NON-CONTRACTED AND/OR ADMINSTRATIVE WORK) | E19: 17073.13 | F19: 0 | G19: =IF((E19+F19)<=0,0,SUM(E19+F19)/SUM(E19+F19+H19+I19+K19)) -> 0.8400936087 | H19: 1547.59 | I19: 179.5 | J19: =IF((H19+I19)<=0,0,SUM(H19+I19)/SUM(E19+F19+H19+I19+K19)) -> 0.08498250003 | K19: 1522.67 | L19: =IF(K19<=0,0,K19/SUM(E19+F19+H19+I19+K19)) -> 0.07492389124 | M19: 818.37 | N19: 0 | O19: =SUM(E19+F19+H19+I19+M19+N19+K19) -> 21141.26 | P19: 1788.48 | Q19: 476.94 | R19: =SUM(O19:Q19) -> 23406.68 | S19: =ROUND(SUM(E19+F19),2)+ROUND(SUM(M19+N19+P19+Q19)*G19,2) -> 19663.8 | T19: =ROUND(SUM(H19+I19),2)+ROUND(SUM(M19+N19+P19+Q19)*J19,2) -> 1989.16 | U19: =K19+ROUND(SUM(M19+N19+P19+Q19)*L19,2) -> 1753.72
A20: 8 | B20: FEBRUARY | C20: GH ONLY - ADMINISTRATOR PAYROLL | E20: 0 | F20: 0 | G20: =IF((E20+F20)<=0,0,SUM(E20+F20)/SUM(E20+F20+H20+I20+K20)) -> 0 | H20: 0 | I20: 0 | J20: =IF((H20+I20)<=0,0,SUM(H20+I20)/SUM(E20+F20+H20+I20+K20)) -> 0 | K20: 0 | L20: =IF(K20<=0,0,K20/SUM(E20+F20+H20+I20+K20)) -> 0 | M20: 0 | N20: 0 | O20: =SUM(E20+F20+H20+I20+M20+N20+K20) -> 0 | P20: 0 | Q20: 0 | R20: =SUM(O20:Q20) -> 0 | S20: =ROUND(SUM(E20+F20),2)+ROUND(SUM(M20+N20+P20+Q20)*G20,2) -> 0 | T20: =ROUND(SUM(H20+I20),2)+ROUND(SUM(M20+N20+P20+Q20)*J20,2) -> 0 | U20: =K20+ROUND(SUM(M20+N20+P20+Q20)*L20,2) -> 0
A21: 9 | B21: FEBRUARY | C21: ADMINISTRATOR ISS PAYROLL FOR SL & COMBINED SL/GH AGENCIES WITH 20 OR FEWER ISS FTE'S | D21: =SUM(D18:D19) -> 40 | E21: 0 | F21: 0 | G21: =IF((E21+F21)<=0,0,SUM(E21+F21)/SUM(E21+F21+H21+I21+K21)) -> 0 | H21: 0 | I21: 0 | J21: =IF((H21+I21)<=0,0,SUM(H21+I21)/SUM(E21+F21+H21+I21+K21)) -> 0 | K21: 0 | L21: =IF(K21<=0,0,K21/SUM(E21+F21+H21+I21+K21)) -> 0 | M21: 0 | N21: 0 | O21: =SUM(E21+F21+H21+I21+M21+N21+K21) -> 0 | P21: 0 | Q21: 0 | R21: =SUM(O21:Q21) -> 0 | S21: =IF(G21=0,0,IF((M21+N21+P21+Q21)*G21+(E21+F21)<(HLOOKUP('Administrator Regression Table'!$Q$1,'Administrator Regression Table'!$R$1:$U$63,19)*G21),((M21+N21+P21+Q21)*G21+(E21+F21)),(HLOOKUP('Administrator Regression Table'!$Q$1,'Administrator Regression Table'!$R$1:$U$63,19)*G21))) -> 0 | T21: =R21-U21-S21 -> 0 | U21: =K21+ROUND(SUM(M21+N21+P21+Q21)*L21,2) -> 0
A22: 10 | B22: FEBRUARY TOTAL | E22: =SUM(E18:E21) -> 131290.19 | F22: =SUM(F18:F21) -> 10597.45 | H22: =SUM(H18:H21) -> 1547.59 | I22: =SUM(I18:I21) -> 179.5 | K22: =SUM(K18:K21) -> 1522.67 | M22: =SUM(M18:M21) -> 11255.43 | N22: 0 | O22: 156392.83 | P22: 25006.31 | Q22: 5842.45 | R22: 187241.59 | S22: 183498.71 | T22: 1989.16 | U22: 1753.72
A23: 11 | B23: MARCH / 1ST QUARTER | C23: ISS & PROFESSIONAL SERVICES STAFF (CONTRACTED ISS JOB DUTIES ONLY) | D23: =ROUNDDOWN((E23+E24)/VLOOKUP('Administrator Regression Table'!$P$1,'Administrator Regression Table'!$M$1:$N$9,2),0) -> 40 | E23: 114217.06 | F23: 10597.45 | G23: =IF((E23+F23)<=0,0,SUM(E23+F23)/SUM(E23+F23+H23+I23+K23)) -> 1 | H23: 0 | I23: 0 | J23: =IF((H23+I23)<=0,0,SUM(H23+I23)/SUM(E23+F23+H23+I23+K23)) -> 0 | K23: 0 | L23: =IF(K23<=0,0,K23/SUM(E23+F23+H23+I23+K23)) -> 0 | M23: 10437.06 | N23: 0 | O23: =SUM(E23+F23+H23+I23+M23+N23+K23) -> 135251.57 | P23: 23217.83 | Q23: 5365.51 | R23: =SUM(O23:Q23) -> 163834.91 | S23: =ROUND(SUM(E23+F23),2)+ROUND(SUM(M23+N23+P23+Q23)*G23,2) -> 163834.91 | T23: 0 | U23: =K23+ROUND(SUM(M23+N23+P23+Q23)*L23,2) -> 0
A24: 12 | B24: MARCH / 1ST QUARTER | C24: ISS & ADMINISTRATIVE OR NON-CONTRACTED STAFF (STAFF PERFORMS CONTRACTED & NON-CONTRACTED AND/OR ADMINSTRATIVE WORK) | E24: 17073.13 | F24: 0 | G24: =IF((E24+F24)<=0,0,SUM(E24+F24)/SUM(E24+F24+H24+I24+K24)) -> 0.8400936087 | H24: 1727.09 | I24: 0 | J24: =IF((H24+I24)<=0,0,SUM(H24+I24)/SUM(E24+F24+H24+I24+K24)) -> 0.08498250003 | K24: 1522.67 | L24: =IF(K24<=0,0,K24/SUM(E24+F24+H24+I24+K24)) -> 0.07492389124 | M24: 818.37 | N24: 0 | O24: =SUM(E24+F24+H24+I24+M24+N24+K24) -> 21141.26 | P24: 1788.48 | Q24: 476.94 | R24: =SUM(O24:Q24) -> 23406.68 | S24: =ROUND(SUM(E24+F24),2)+ROUND(SUM(M24+N24+P24+Q24)*G24,2) -> 19663.8 | T24: =ROUND(SUM(H24+I24),2)+ROUND(SUM(M24+N24+P24+Q24)*J24,2) -> 1989.16 | U24: =K24+ROUND(SUM(M24+N24+P24+Q24)*L24,2) -> 1753.72
A25: 13 | B25: MARCH / 1ST QUARTER | C25: GH ONLY - ADMINISTRATOR PAYROLL | E25: 0 | F25: 0 | G25: =IF((E25+F25)<=0,0,SUM(E25+F25)/SUM(E25+F25+H25+I25+K25)) -> 0 | H25: 0 | I25: 0 | J25: =IF((H25+I25)<=0,0,SUM(H25+I25)/SUM(E25+F25+H25+I25+K25)) -> 0 | K25: 0 | L25: =IF(K25<=0,0,K25/SUM(E25+F25+H25+I25+K25)) -> 0 | M25: 0 | N25: 0 | O25: =SUM(E25+F25+H25+I25+M25+N25+K25) -> 0 | P25: 0 | Q25: 0 | R25: =SUM(O25:Q25) -> 0 | S25: =ROUND(SUM(E25+F25),2)+ROUND(SUM(M25+N25+P25+Q25)*G25,2) -> 0 | T25: =ROUND(SUM(H25+I25),2)+ROUND(SUM(M25+N25+P25+Q25)*J25,2) -> 0 | U25: =K25+ROUND(SUM(M25+N25+P25+Q25)*L25,2) -> 0
A26: 14 | B26: MARCH / 1ST QUARTER | C26: ADMINISTRATOR ISS PAYROLL FOR SL & COMBINED SL/GH AGENCIES WITH 20 OR FEWER ISS FTE'S | D26: =SUM(D23:D24) -> 40 | E26: 0 | F26: 0 | G26: =IF((E26+F26)<=0,0,SUM(E26+F26)/SUM(E26+F26+H26+I26+K26)) -> 0 | H26: 0 | I26: 0 | J26: =IF((H26+I26)<=0,0,SUM(H26+I26)/SUM(E26+F26+H26+I26+K26)) -> 0 | K26: 0 | L26: =IF(K26<=0,0,K26/SUM(E26+F26+H26+I26+K26)) -> 0 | M26: 0 | N26: 0 | O26: =SUM(E26+F26+H26+I26+M26+N26+K26) -> 0 | P26: 0 | Q26: 0 | R26: =SUM(O26:Q26) -> 0 | S26: =IF(G26=0,0,IF((M26+N26+P26+Q26)*G26+(E26+F26)<(HLOOKUP('Administrator Regression Table'!$Q$1,'Administrator Regression Table'!$R$1:$U$63,23)*G26),((M26+N26+P26+Q26)*G26+(E26+F26)),(HLOOKUP('Administrator Regression Table'!$Q$1,'Administrator Regression Table'!$R$1:$U$63,23)*G26))) -> 0 | T26: =R26-U26-S26 -> 0 | U26: =K26+ROUND(SUM(M26+N26+P26+Q26)*L26,2) -> 0
A27: 15 | B27: MARCH TOTAL | E27: =SUM(E23:E26) -> 131290.19 | F27: =SUM(F23:F26) -> 10597.45 | H27: =SUM(H23:H26) -> 1727.09 | I27: =SUM(I23:I26) -> 0 | K27: =SUM(K23:K26) -> 1522.67 | M27: =SUM(M23:M26) -> 11255.43 | N27: 0 | O27: 156392.83 | P27: 25006.31 | Q27: 5842.45 | R27: 187241.59 | S27: 183498.71 | T27: 1989.16 | U27: 1753.72
A28: 16 | B28: APRIL | C28: ISS & PROFESSIONAL SERVICES STAFF (CONTRACTED ISS JOB DUTIES ONLY) | D28: =ROUNDDOWN((E28+E29)/VLOOKUP('Administrator Regression Table'!$P$1,'Administrator Regression Table'!$M$1:$N$9,2),0) -> 40 | E28: 114217.06 | F28: 10597.45 | G28: =IF((E28+F28)<=0,0,SUM(E28+F28)/SUM(E28+F28+H28+I28+K28)) -> 1 | H28: 0 | I28: 0 | J28: =IF((H28+I28)<=0,0,SUM(H28+I28)/SUM(E28+F28+H28+I28+K28)) -> 0 | K28: 0 | L28: =IF(K28<=0,0,K28/SUM(E28+F28+H28+I28+K28)) -> 0 | M28: 10437.06 | N28: 0 | O28: =SUM(E28+F28+H28+I28+M28+N28+K28) -> 135251.57 | P28: 23217.83 | Q28: 5365.51 | R28: =SUM(O28:Q28) -> 163834.91 | S28: =ROUND(SUM(E28+F28),2)+ROUND(SUM(M28+N28+P28+Q28)*G28,2) -> 163834.91 | T28: 0 | U28: =K28+ROUND(SUM(M28+N28+P28+Q28)*L28,2) -> 0
A29: 17 | B29: APRIL | C29: ISS & ADMINISTRATIVE OR NON-CONTRACTED STAFF (STAFF PERFORMS CONTRACTED & NON-CONTRACTED AND/OR ADMINSTRATIVE WORK) | E29: 17073.13 | F29: 0 | G29: =IF((E29+F29)<=0,0,SUM(E29+F29)/SUM(E29+F29+H29+I29+K29)) -> 0.8400936087 | H29: 1547.59 | I29: 179.5 | J29: =IF((H29+I29)<=0,0,SUM(H29+I29)/SUM(E29+F29+H29+I29+K29)) -> 0.08498250003 | K29: 1522.67 | L29: =IF(K29<=0,0,K29/SUM(E29+F29+H29+I29+K29)) -> 0.07492389124 | M29: 818.37 | N29: 0 | O29: =SUM(E29+F29+H29+I29+M29+N29+K29) -> 21141.26 | P29: 1788.48 | Q29: 476.94 | R29: =SUM(O29:Q29) -> 23406.68 | S29: =ROUND(SUM(E29+F29),2)+ROUND(SUM(M29+N29+P29+Q29)*G29,2) -> 19663.8 | T29: =ROUND(SUM(H29+I29),2)+ROUND(SUM(M29+N29+P29+Q29)*J29,2) -> 1989.16 | U29: =K29+ROUND(SUM(M29+N29+P29+Q29)*L29,2) -> 1753.72
A30: 18 | B30: APRIL | C30: GH ONLY - ADMINISTRATOR PAYROLL | E30: 0 | F30: 0 | G30: =IF((E30+F30)<=0,0,SUM(E30+F30)/SUM(E30+F30+H30+I30+K30)) -> 0 | H30: 0 | I30: 0 | J30: =IF((H30+I30)<=0,0,SUM(H30+I30)/SUM(E30+F30+H30+I30+K30)) -> 0 | K30: 0 | L30: =IF(K30<=0,0,K30/SUM(E30+F30+H30+I30+K30)) -> 0 | M30: 0 | N30: 0 | O30: =SUM(E30+F30+H30+I30+M30+N30+K30) -> 0 | P30: 0 | Q30: 0 | R30: =SUM(O30:Q30) -> 0 | S30: =ROUND(SUM(E30+F30),2)+ROUND(SUM(M30+N30+P30+Q30)*G30,2) -> 0 | T30: =ROUND(SUM(H30+I30),2)+ROUND(SUM(M30+N30+P30+Q30)*J30,2) -> 0 | U30: =K30+ROUND(SUM(M30+N30+P30+Q30)*L30,2) -> 0
A31: 19 | B31: APRIL | C31: ADMINISTRATOR ISS PAYROLL FOR SL & COMBINED SL/GH AGENCIES WITH 20 OR FEWER ISS FTE'S | D31: =SUM(D28:D29) -> 40 | E31: 0 | F31: 0 | G31: =IF((E31+F31)<=0,0,SUM(E31+F31)/SUM(E31+F31+H31+I31+K31)) -> 0 | H31: 0 | I31: 0 | J31: =IF((H31+I31)<=0,0,SUM(H31+I31)/SUM(E31+F31+H31+I31+K31)) -> 0 | K31: 0 | L31: =IF(K31<=0,0,K31/SUM(E31+F31+H31+I31+K31)) -> 0 | M31: 0 | N31: 0 | O31: =SUM(E31+F31+H31+I31+M31+N31+K31) -> 0 | P31: 0 | Q31: 0 | R31: =SUM(O31:Q31) -> 0 | S31: =IF(G31=0,0,IF((M31+N31+P31+Q31)*G31+(E31+F31)<(HLOOKUP('Administrator Regression Table'!$Q$1,'Administrator Regression Table'!$R$1:$U$63,27)*G31),((M31+N31+P31+Q31)*G31+(E31+F31)),(HLOOKUP('Administrator Regression Table'!$Q$1,'Administrator Regression Table'!$R$1:$U$63,27)*G31))) -> 0 | T31: =R31-U31-S31 -> 0 | U31: =K31+ROUND(SUM(M31+N31+P31+Q31)*L31,2) -> 0
A32: 20 | B32: APRIL TOTAL | E32: =SUM(E28:E31) -> 131290.19 | F32: =SUM(F28:F31) -> 10597.45 | H32: =SUM(H28:H31) -> 1547.59 | I32: =SUM(I28:I31) -> 179.5 | K32: =SUM(K28:K31) -> 1522.67 | M32: =SUM(M28:M31) -> 11255.43 | N32: 0 | O32: 156392.83 | P32: 25006.31 | Q32: 5842.45 | R32: 187241.59 | S32: 183498.71 | T32: 1989.16 | U32: 1753.72
A33: 21 | B33: MAY | C33: ISS & PROFESSIONAL SERVICES STAFF (CONTRACTED ISS JOB DUTIES ONLY) | D33: =ROUNDDOWN((E33+E34)/VLOOKUP('Administrator Regression Table'!$P$1,'Administrator Regression Table'!$M$1:$N$9,2),0) -> 40 | E33: 114217.06 | F33: 10597.45 | G33: =IF((E33+F33)<=0,0,SUM(E33+F33)/SUM(E33+F33+H33+I33+K33)) -> 1 | H33: 0 | I33: 0 | J33: =IF((H33+I33)<=0,0,SUM(H33+I33)/SUM(E33+F33+H33+I33+K33)) -> 0 | K33: 0 | L33: =IF(K33<=0,0,K33/SUM(E33+F33+H33+I33+K33)) -> 0 | M33: 10437.06 | N33: 0 | O33: =SUM(E33+F33+H33+I33+M33+N33+K33) -> 135251.57 | P33: 23217.83 | Q33: 5365.51 | R33: =SUM(O33:Q33) -> 163834.91 | S33: =ROUND(SUM(E33+F33),2)+ROUND(SUM(M33+N33+P33+Q33)*G33,2) -> 163834.91 | T33: 0 | U33: =K33+ROUND(SUM(M33+N33+P33+Q33)*L33,2) -> 0
A34: 22 | B34: MAY | C34: ISS & ADMINISTRATIVE OR NON-CONTRACTED STAFF (STAFF PERFORMS CONTRACTED & NON-CONTRACTED AND/OR ADMINSTRATIVE WORK) | E34: 17073.13 | F34: 0 | G34: =IF((E34+F34)<=0,0,SUM(E34+F34)/SUM(E34+F34+H34+I34+K34)) -> 0.8400936087 | H34: 1547.59 | I34: 179.5 | J34: =IF((H34+I34)<=0,0,SUM(H34+I34)/SUM(E34+F34+H34+I34+K34)) -> 0.08498250003 | K34: 1522.67 | L34: =IF(K34<=0,0,K34/SUM(E34+F34+H34+I34+K34)) -> 0.07492389124 | M34: 818.37 | N34: 0 | O34: =SUM(E34+F34+H34+I34+M34+N34+K34) -> 21141.26 | P34: 1788.48 | Q34: 476.94 | R34: =SUM(O34:Q34) -> 23406.68 | S34: =ROUND(SUM(E34+F34),2)+ROUND(SUM(M34+N34+P34+Q34)*G34,2) -> 19663.8 | T34: =ROUND(SUM(H34+I34),2)+ROUND(SUM(M34+N34+P34+Q34)*J34,2) -> 1989.16 | U34: =K34+ROUND(SUM(M34+N34+P34+Q34)*L34,2) -> 1753.72
A35: 23 | B35: MAY | C35: GH ONLY - ADMINISTRATOR PAYROLL | E35: 0 | F35: 0 | G35: =IF((E35+F35)<=0,0,SUM(E35+F35)/SUM(E35+F35+H35+I35+K35)) -> 0 | H35: 0 | I35: 0 | J35: =IF((H35+I35)<=0,0,SUM(H35+I35)/SUM(E35+F35+H35+I35+K35)) -> 0 | K35: 0 | L35: =IF(K35<=0,0,K35/SUM(E35+F35+H35+I35+K35)) -> 0 | M35: 0 | N35: 0 | O35: =SUM(E35+F35+H35+I35+M35+N35+K35) -> 0 | P35: 0 | Q35: 0 | R35: =SUM(O35:Q35) -> 0 | S35: =ROUND(SUM(E35+F35),2)+ROUND(SUM(M35+N35+P35+Q35)*G35,2) -> 0 | T35: =ROUND(SUM(H35+I35),2)+ROUND(SUM(M35+N35+P35+Q35)*J35,2) -> 0 | U35: =K35+ROUND(SUM(M35+N35+P35+Q35)*L35,2) -> 0
A36: 24 | B36: MAY | C36: ADMINISTRATOR ISS PAYROLL FOR SL & COMBINED SL/GH AGENCIES WITH 20 OR FEWER ISS FTE'S | D36: =SUM(D33:D34) -> 40 | E36: 0 | F36: 0 | G36: =IF((E36+F36)<=0,0,SUM(E36+F36)/SUM(E36+F36+H36+I36+K36)) -> 0 | H36: 0 | I36: 0 | J36: =IF((H36+I36)<=0,0,SUM(H36+I36)/SUM(E36+F36+H36+I36+K36)) -> 0 | K36: 0 | L36: =IF(K36<=0,0,K36/SUM(E36+F36+H36+I36+K36)) -> 0 | M36: 0 | N36: 0 | O36: =SUM(E36+F36+H36+I36+M36+N36+K36) -> 0 | P36: 0 | Q36: 0 | R36: =SUM(O36:Q36) -> 0 | S36: =IF(G36=0,0,IF((M36+N36+P36+Q36)*G36+(E36+F36)<(HLOOKUP('Administrator Regression Table'!$Q$1,'Administrator Regression Table'!$R$1:$U$63,31)*G36),((M36+N36+P36+Q36)*G36+(E36+F36)),(HLOOKUP('Administrator Regression Table'!$Q$1,'Administrator Regression Table'!$R$1:$U$63,31)*G36))) -> 0 | T36: =R36-U36-S36 -> 0 | U36: =K36+ROUND(SUM(M36+N36+P36+Q36)*L36,2) -> 0
A37: 25 | B37: MAY TOTAL | E37: =SUM(E33:E36) -> 131290.19 | F37: =SUM(F33:F36) -> 10597.45 | H37: =SUM(H33:H36) -> 1547.59 | I37: =SUM(I33:I36) -> 179.5 | K37: =SUM(K33:K36) -> 1522.67 | M37: =SUM(M33:M36) -> 11255.43 | N37: 0 | O37: 156392.83 | P37: 25006.31 | Q37: 5842.45 | R37: 187241.59 | S37: 183498.71 | T37: 1989.16 | U37: 1753.72
A38: 26 | B38: JUNE / 2ND QUARTER | C38: ISS & PROFESSIONAL SERVICES STAFF (CONTRACTED ISS JOB DUTIES ONLY) | D38: =ROUNDDOWN((E38+E39)/VLOOKUP('Administrator Regression Table'!$P$1,'Administrator Regression Table'!$M$1:$N$9,2),0) -> 40 | E38: 114217.06 | F38: 10597.45 | G38: =IF((E38+F38)<=0,0,SUM(E38+F38)/SUM(E38+F38+H38+I38+K38)) -> 1 | H38: 0 | I38: 0 | J38: =IF((H38+I38)<=0,0,SUM(H38+I38)/SUM(E38+F38+H38+I38+K38)) -> 0 | K38: 0 | L38: =IF(K38<=0,0,K38/SUM(E38+F38+H38+I38+K38)) -> 0 | M38: 10437.06 | N38: 0 | O38: =SUM(E38+F38+H38+I38+M38+N38+K38) -> 135251.57 | P38: 23217.83 | Q38: 5365.51 | R38: =SUM(O38:Q38) -> 163834.91 | S38: =ROUND(SUM(E38+F38),2)+ROUND(SUM(M38+N38+P38+Q38)*G38,2) -> 163834.91 | T38: 0 | U38: =K38+ROUND(SUM(M38+N38+P38+Q38)*L38,2) -> 0
A39: 27 | B39: JUNE / 2ND QUARTER | C39: ISS & ADMINISTRATIVE OR NON-CONTRACTED STAFF (STAFF PERFORMS CONTRACTED & NON-CONTRACTED AND/OR ADMINSTRATIVE WORK) | E39: 17073.13 | F39: 0 | G39: =IF((E39+F39)<=0,0,SUM(E39+F39)/SUM(E39+F39+H39+I39+K39)) -> 0.8400936087 | H39: 1547.59 | I39: 179.5 | J39: =IF((H39+I39)<=0,0,SUM(H39+I39)/SUM(E39+F39+H39+I39+K39)) -> 0.08498250003 | K39: 1522.67 | L39: =IF(K39<=0,0,K39/SUM(E39+F39+H39+I39+K39)) -> 0.07492389124 | M39: 818.37 | N39: 0 | O39: =SUM(E39+F39+H39+I39+M39+N39+K39) -> 21141.26 | P39: 1788.48 | Q39: 476.94 | R39: =SUM(O39:Q39) -> 23406.68 | S39: =ROUND(SUM(E39+F39),2)+ROUND(SUM(M39+N39+P39+Q39)*G39,2) -> 19663.8 | T39: =ROUND(SUM(H39+I39),2)+ROUND(SUM(M39+N39+P39+Q39)*J39,2) -> 1989.16 | U39: =K39+ROUND(SUM(M39+N39+P39+Q39)*L39,2) -> 1753.72
A40: 28 | B40: JUNE / 2ND QUARTER | C40: GH ONLY - ADMINISTRATOR PAYROLL | E40: 0 | F40: 0 | G40: =IF((E40+F40)<=0,0,SUM(E40+F40)/SUM(E40+F40+H40+I40+K40)) -> 0 | H40: 0 | I40: 0 | J40: =IF((H40+I40)<=0,0,SUM(H40+I40)/SUM(E40+F40+H40+I40+K40)) -> 0 | K40: 0 | L40: =IF(K40<=0,0,K40/SUM(E40+F40+H40+I40+K40)) -> 0 | M40: 0 | N40: 0 | O40: =SUM(E40+F40+H40+I40+M40+N40+K40) -> 0 | P40: 0 | Q40: 0 | R40: =SUM(O40:Q40) -> 0 | S40: =ROUND(SUM(E40+F40),2)+ROUND(SUM(M40+N40+P40+Q40)*G40,2) -> 0 | T40: =ROUND(SUM(H40+I40),2)+ROUND(SUM(M40+N40+P40+Q40)*J40,2) -> 0 | U40: =K40+ROUND(SUM(M40+N40+P40+Q40)*L40,2) -> 0
A41: 29 | B41: JUNE / 2ND QUARTER | C41: ADMINISTRATOR ISS PAYROLL FOR SL & COMBINED SL/GH AGENCIES WITH 20 OR FEWER ISS FTE'S | D41: =SUM(D38:D39) -> 40 | E41: 0 | F41: 0 | G41: =IF((E41+F41)<=0,0,SUM(E41+F41)/SUM(E41+F41+H41+I41+K41)) -> 0 | H41: 0 | I41: 0 | J41: =IF((H41+I41)<=0,0,SUM(H41+I41)/SUM(E41+F41+H41+I41+K41)) -> 0 | K41: 0 | L41: =IF(K41<=0,0,K41/SUM(E41+F41+H41+I41+K41)) -> 0 | M41: 0 | N41: 0 | O41: =SUM(E41+F41+H41+I41+M41+N41+K41) -> 0 | P41: 0 | Q41: 0 | R41: =SUM(O41:Q41) -> 0 | S41: =IF(G41=0,0,IF((M41+N41+P41+Q41)*G41+(E41+F41)<(HLOOKUP('Administrator Regression Table'!$Q$1,'Administrator Regression Table'!$R$1:$U$63,35)*G41),((M41+N41+P41+Q41)*G41+(E41+F41)),(HLOOKUP('Administrator Regression Table'!$Q$1,'Administrator Regression Table'!$R$1:$U$63,35)*G41))) -> 0 | T41: =R41-U41-S41 -> 0 | U41: =K41+ROUND(SUM(M41+N41+P41+Q41)*L41,2) -> 0
A42: 30 | B42: JUNE TOTAL | E42: =SUM(E38:E41) -> 131290.19 | F42: =SUM(F38:F41) -> 10597.45 | H42: =SUM(H38:H41) -> 1547.59 | I42: =SUM(I38:I41) -> 179.5 | K42: =SUM(K38:K41) -> 1522.67 | M42: =SUM(M38:M41) -> 11255.43 | N42: 0 | O42: 156392.83 | P42: 25006.31 | Q42: 5842.45 | R42: 187241.59 | S42: 183498.71 | T42: 1989.16 | U42: 1753.72
A43: 31 | B43: JULY | C43: ISS & PROFESSIONAL SERVICES STAFF (CONTRACTED ISS JOB DUTIES ONLY) | D43: =ROUNDDOWN((E43+E44)/VLOOKUP('Administrator Regression Table'!$P$1,'Administrator Regression Table'!$M$1:$N$9,2),0) -> 40 | E43: 114217.06 | F43: 10597.45 | G43: =IF((E43+F43)<=0,0,SUM(E43+F43)/SUM(E43+F43+H43+I43+K43)) -> 1 | H43: 0 | I43: 0 | J43: =IF((H43+I43)<=0,0,SUM(H43+I43)/SUM(E43+F43+H43+I43+K43)) -> 0 | K43: 0 | L43: =IF(K43<=0,0,K43/SUM(E43+F43+H43+I43+K43)) -> 0 | M43: 10437.06 | N43: 0 | O43: =SUM(E43+F43+H43+I43+M43+N43+K43) -> 135251.57 | P43: 23217.83 | Q43: 5365.51 | R43: =SUM(O43:Q43) -> 163834.91 | S43: =ROUND(SUM(E43+F43),2)+ROUND(SUM(M43+N43+P43+Q43)*G43,2) -> 163834.91 | T43: 0 | U43: =K43+ROUND(SUM(M43+N43+P43+Q43)*L43,2) -> 0
A44: 32 | B44: JULY | C44: ISS & ADMINISTRATIVE OR NON-CONTRACTED STAFF (STAFF PERFORMS CONTRACTED & NON-CONTRACTED AND/OR ADMINSTRATIVE WORK) | E44: 17073.13 | F44: 0 | G44: =IF((E44+F44)<=0,0,SUM(E44+F44)/SUM(E44+F44+H44+I44+K44)) -> 0.8400936087 | H44: 1547.59 | I44: 179.5 | J44: =IF((H44+I44)<=0,0,SUM(H44+I44)/SUM(E44+F44+H44+I44+K44)) -> 0.08498250003 | K44: 1522.67 | L44: =IF(K44<=0,0,K44/SUM(E44+F44+H44+I44+K44)) -> 0.07492389124 | M44: 818.37 | N44: 0 | O44: =SUM(E44+F44+H44+I44+M44+N44+K44) -> 21141.26 | P44: 1788.48 | Q44: 476.94 | R44: =SUM(O44:Q44) -> 23406.68 | S44: =ROUND(SUM(E44+F44),2)+ROUND(SUM(M44+N44+P44+Q44)*G44,2) -> 19663.8 | T44: =ROUND(SUM(H44+I44),2)+ROUND(SUM(M44+N44+P44+Q44)*J44,2) -> 1989.16 | U44: =K44+ROUND(SUM(M44+N44+P44+Q44)*L44,2) -> 1753.72
A45: 33 | B45: JULY | C45: GH ONLY - ADMINISTRATOR PAYROLL | E45: 0 | F45: 0 | G45: =IF((E45+F45)<=0,0,SUM(E45+F45)/SUM(E45+F45+H45+I45+K45)) -> 0 | H45: 0 | I45: 0 | J45: =IF((H45+I45)<=0,0,SUM(H45+I45)/SUM(E45+F45+H45+I45+K45)) -> 0 | K45: 0 | L45: =IF(K45<=0,0,K45/SUM(E45+F45+H45+I45+K45)) -> 0 | M45: 0 | N45: 0 | O45: =SUM(E45+F45+H45+I45+M45+N45+K45) -> 0 | P45: 0 | Q45: 0 | R45: =SUM(O45:Q45) -> 0 | S45: =ROUND(SUM(E45+F45),2)+ROUND(SUM(M45+N45+P45+Q45)*G45,2) -> 0 | T45: =ROUND(SUM(H45+I45),2)+ROUND(SUM(M45+N45+P45+Q45)*J45,2) -> 0 | U45: =K45+ROUND(SUM(M45+N45+P45+Q45)*L45,2) -> 0
A46: 34 | B46: JULY | C46: ADMINISTRATOR ISS PAYROLL FOR SL & COMBINED SL/GH AGENCIES WITH 20 OR FEWER ISS FTE'S | D46: =SUM(D43:D44) -> 40 | E46: 0 | F46: 0 | G46: =IF((E46+F46)<=0,0,SUM(E46+F46)/SUM(E46+F46+H46+I46+K46)) -> 0 | H46: 0 | I46: 0 | J46: =IF((H46+I46)<=0,0,SUM(H46+I46)/SUM(E46+F46+H46+I46+K46)) -> 0 | K46: 0 | L46: =IF(K46<=0,0,K46/SUM(E46+F46+H46+I46+K46)) -> 0 | M46: 0 | N46: 0 | O46: =SUM(E46+F46+H46+I46+M46+N46+K46) -> 0 | P46: 0 | Q46: 0 | R46: =SUM(O46:Q46) -> 0 | S46: =IF(G46=0,0,IF((M46+N46+P46+Q46)*G46+(E46+F46)<(HLOOKUP('Administrator Regression Table'!$Q$1,'Administrator Regression Table'!$R$1:$U$63,39)*G46),((M46+N46+P46+Q46)*G46+(E46+F46)),(HLOOKUP('Administrator Regression Table'!$Q$1,'Administrator Regression Table'!$R$1:$U$63,39)*G46))) -> 0 | T46: =R46-U46-S46 -> 0 | U46: =K46+ROUND(SUM(M46+N46+P46+Q46)*L46,2) -> 0
A47: 35 | B47: JULY TOTAL | E47: =SUM(E43:E46) -> 131290.19 | F47: =SUM(F43:F46) -> 10597.45 | H47: =SUM(H43:H46) -> 1547.59 | I47: =SUM(I43:I46) -> 179.5 | K47: =SUM(K43:K46) -> 1522.67 | M47: =SUM(M43:M46) -> 11255.43 | N47: 0 | O47: 156392.83 | P47: 25006.31 | Q47: 5842.45 | R47: 187241.59 | S47: 183498.71 | T47: 1989.16 | U47: 1753.72
A48: 36 | B48: AUGUST | C48: ISS & PROFESSIONAL SERVICES STAFF (CONTRACTED ISS JOB DUTIES ONLY) | D48: =ROUNDDOWN((E48+E49)/VLOOKUP('Administrator Regression Table'!$P$1,'Administrator Regression Table'!$M$1:$N$9,2),0) -> 40 | E48: 114217.06 | F48: 10597.45 | G48: =IF((E48+F48)<=0,0,SUM(E48+F48)/SUM(E48+F48+H48+I48+K48)) -> 1 | H48: 0 | I48: 0 | J48: =IF((H48+I48)<=0,0,SUM(H48+I48)/SUM(E48+F48+H48+I48+K48)) -> 0 | K48: 0 | L48: =IF(K48<=0,0,K48/SUM(E48+F48+H48+I48+K48)) -> 0 | M48: 10437.06 | N48: 0 | O48: =SUM(E48+F48+H48+I48+M48+N48+K48) -> 135251.57 | P48: 23217.83 | Q48: 5365.51 | R48: =SUM(O48:Q48) -> 163834.91 | S48: =ROUND(SUM(E48+F48),2)+ROUND(SUM(M48+N48+P48+Q48)*G48,2) -> 163834.91 | T48: 0 | U48: =K48+ROUND(SUM(M48+N48+P48+Q48)*L48,2) -> 0
A49: 37 | B49: AUGUST | C49: ISS & ADMINISTRATIVE OR NON-CONTRACTED STAFF (STAFF PERFORMS CONTRACTED & NON-CONTRACTED AND/OR ADMINSTRATIVE WORK) | E49: 17073.13 | F49: 0 | G49: =IF((E49+F49)<=0,0,SUM(E49+F49)/SUM(E49+F49+H49+I49+K49)) -> 0.8400936087 | H49: 1547.59 | I49: 179.5 | J49: =IF((H49+I49)<=0,0,SUM(H49+I49)/SUM(E49+F49+H49+I49+K49)) -> 0.08498250003 | K49: 1522.67 | L49: =IF(K49<=0,0,K49/SUM(E49+F49+H49+I49+K49)) -> 0.07492389124 | M49: 818.37 | N49: 0 | O49: =SUM(E49+F49+H49+I49+M49+N49+K49) -> 21141.26 | P49: 1788.48 | Q49: 476.94 | R49: =SUM(O49:Q49) -> 23406.68 | S49: =ROUND(SUM(E49+F49),2)+ROUND(SUM(M49+N49+P49+Q49)*G49,2) -> 19663.8 | T49: =ROUND(SUM(H49+I49),2)+ROUND(SUM(M49+N49+P49+Q49)*J49,2) -> 1989.16 | U49: =K49+ROUND(SUM(M49+N49+P49+Q49)*L49,2) -> 1753.72
A50: 38 | B50: AUGUST | C50: GH ONLY - ADMINISTRATOR PAYROLL | E50: 0 | F50: 0 | G50: =IF((E50+F50)<=0,0,SUM(E50+F50)/SUM(E50+F50+H50+I50+K50)) -> 0 | H50: 0 | I50: 0 | J50: =IF((H50+I50)<=0,0,SUM(H50+I50)/SUM(E50+F50+H50+I50+K50)) -> 0 | K50: 0 | L50: =IF(K50<=0,0,K50/SUM(E50+F50+H50+I50+K50)) -> 0 | M50: 0 | N50: 0 | O50: =SUM(E50+F50+H50+I50+M50+N50+K50) -> 0 | P50: 0 | Q50: 0 | R50: =SUM(O50:Q50) -> 0 | S50: =ROUND(SUM(E50+F50),2)+ROUND(SUM(M50+N50+P50+Q50)*G50,2) -> 0 | T50: =ROUND(SUM(H50+I50),2)+ROUND(SUM(M50+N50+P50+Q50)*J50,2) -> 0 | U50: =K50+ROUND(SUM(M50+N50+P50+Q50)*L50,2) -> 0
A51: 39 | B51: AUGUST | C51: ADMINISTRATOR ISS PAYROLL FOR SL & COMBINED SL/GH AGENCIES WITH 20 OR FEWER ISS FTE'S | D51: =SUM(D48:D49) -> 40 | E51: 0 | F51: 0 | G51: =IF((E51+F51)<=0,0,SUM(E51+F51)/SUM(E51+F51+H51+I51+K51)) -> 0 | H51: 0 | I51: 0 | J51: =IF((H51+I51)<=0,0,SUM(H51+I51)/SUM(E51+F51+H51+I51+K51)) -> 0 | K51: 0 | L51: =IF(K51<=0,0,K51/SUM(E51+F51+H51+I51+K51)) -> 0 | M51: 0 | N51: 0 | O51: =SUM(E51+F51+H51+I51+M51+N51+K51) -> 0 | P51: 0 | Q51: 0 | R51: =SUM(O51:Q51) -> 0 | S51: =IF(G51=0,0,IF((M51+N51+P51+Q51)*G51+(E51+F51)<(HLOOKUP('Administrator Regression Table'!$Q$1,'Administrator Regression Table'!$R$1:$U$63,43)*G51),((M51+N51+P51+Q51)*G51+(E51+F51)),(HLOOKUP('Administrator Regression Table'!$Q$1,'Administrator Regression Table'!$R$1:$U$63,43)*G51))) -> 0 | T51: =R51-U51-S51 -> 0 | U51: =K51+ROUND(SUM(M51+N51+P51+Q51)*L51,2) -> 0
A52: 40 | B52: AUGUST TOTAL | E52: =SUM(E48:E51) -> 131290.19 | F52: =SUM(F48:F51) -> 10597.45 | H52: =SUM(H48:H51) -> 1547.59 | I52: =SUM(I48:I51) -> 179.5 | K52: =SUM(K48:K51) -> 1522.67 | M52: =SUM(M48:M51) -> 11255.43 | N52: 0 | O52: 156392.83 | P52: 25006.31 | Q52: 5842.45 | R52: 187241.59 | S52: 183498.71 | T52: 1989.16 | U52: 1753.72
A53: 41 | B53: SEPTEMBER / 3RD QUARTER | C53: ISS & PROFESSIONAL SERVICES STAFF (CONTRACTED ISS JOB DUTIES ONLY) | D53: =ROUNDDOWN((E53+E54)/VLOOKUP('Administrator Regression Table'!$P$1,'Administrator Regression Table'!$M$1:$N$9,2),0) -> 40 | E53: 114217.06 | F53: 10597.45 | G53: =IF((E53+F53)<=0,0,SUM(E53+F53)/SUM(E53+F53+H53+I53+K53)) -> 1 | H53: 0 | I53: 0 | J53: =IF((H53+I53)<=0,0,SUM(H53+I53)/SUM(E53+F53+H53+I53+K53)) -> 0 | K53: 0 | L53: =IF(K53<=0,0,K53/SUM(E53+F53+H53+I53+K53)) -> 0 | M53: 10437.06 | N53: 0 | O53: =SUM(E53+F53+H53+I53+M53+N53+K53) -> 135251.57 | P53: 23217.83 | Q53: 5365.51 | R53: =SUM(O53:Q53) -> 163834.91 | S53: =ROUND(SUM(E53+F53),2)+ROUND(SUM(M53+N53+P53+Q53)*G53,2) -> 163834.91 | T53: 0 | U53: =K53+ROUND(SUM(M53+N53+P53+Q53)*L53,2) -> 0
A54: 42 | B54: SEPTEMBER / 3RD QUARTER | C54: ISS & ADMINISTRATIVE OR NON-CONTRACTED STAFF (STAFF PERFORMS CONTRACTED & NON-CONTRACTED AND/OR ADMINSTRATIVE WORK) | E54: 17073.13 | F54: 0 | G54: =IF((E54+F54)<=0,0,SUM(E54+F54)/SUM(E54+F54+H54+I54+K54)) -> 0.8400936087 | H54: 1547.59 | I54: 179.5 | J54: =IF((H54+I54)<=0,0,SUM(H54+I54)/SUM(E54+F54+H54+I54+K54)) -> 0.08498250003 | K54: 1522.67 | L54: =IF(K54<=0,0,K54/SUM(E54+F54+H54+I54+K54)) -> 0.07492389124 | M54: 818.37 | N54: 0 | O54: =SUM(E54+F54+H54+I54+M54+N54+K54) -> 21141.26 | P54: 1788.48 | Q54: 476.94 | R54: =SUM(O54:Q54) -> 23406.68 | S54: =ROUND(SUM(E54+F54),2)+ROUND(SUM(M54+N54+P54+Q54)*G54,2) -> 19663.8 | T54: =ROUND(SUM(H54+I54),2)+ROUND(SUM(M54+N54+P54+Q54)*J54,2) -> 1989.16 | U54: =K54+ROUND(SUM(M54+N54+P54+Q54)*L54,2) -> 1753.72
A55: 43 | B55: SEPTEMBER / 3RD QUARTER | C55: GH ONLY - ADMINISTRATOR PAYROLL | E55: 0 | F55: 0 | G55: =IF((E55+F55)<=0,0,SUM(E55+F55)/SUM(E55+F55+H55+I55+K55)) -> 0 | H55: 0 | I55: 0 | J55: =IF((H55+I55)<=0,0,SUM(H55+I55)/SUM(E55+F55+H55+I55+K55)) -> 0 | K55: 0 | L55: =IF(K55<=0,0,K55/SUM(E55+F55+H55+I55+K55)) -> 0 | M55: 0 | N55: 0 | O55: =SUM(E55+F55+H55+I55+M55+N55+K55) -> 0 | P55: 0 | Q55: 0 | R55: =SUM(O55:Q55) -> 0 | S55: =ROUND(SUM(E55+F55),2)+ROUND(SUM(M55+N55+P55+Q55)*G55,2) -> 0 | T55: =ROUND(SUM(H55+I55),2)+ROUND(SUM(M55+N55+P55+Q55)*J55,2) -> 0 | U55: =K55+ROUND(SUM(M55+N55+P55+Q55)*L55,2) -> 0
A56: 44 | B56: SEPTEMBER / 3RD QUARTER | C56: ADMINISTRATOR ISS PAYROLL FOR SL & COMBINED SL/GH AGENCIES WITH 20 OR FEWER ISS FTE'S | D56: =SUM(D53:D54) -> 40 | E56: 0 | F56: 0 | G56: =IF((E56+F56)<=0,0,SUM(E56+F56)/SUM(E56+F56+H56+I56+K56)) -> 0 | H56: 0 | I56: 0 | J56: =IF((H56+I56)<=0,0,SUM(H56+I56)/SUM(E56+F56+H56+I56+K56)) -> 0 | K56: 0 | L56: =IF(K56<=0,0,K56/SUM(E56+F56+H56+I56+K56)) -> 0 | M56: 0 | N56: 0 | O56: =SUM(E56+F56+H56+I56+M56+N56+K56) -> 0 | P56: 0 | Q56: 0 | R56: =SUM(O56:Q56) -> 0 | S56: =IF(G56=0,0,IF((M56+N56+P56+Q56)*G56+(E56+F56)<(HLOOKUP('Administrator Regression Table'!$Q$1,'Administrator Regression Table'!$R$1:$U$63,47)*G56),((M56+N56+P56+Q56)*G56+(E56+F56)),(HLOOKUP('Administrator Regression Table'!$Q$1,'Administrator Regression Table'!$R$1:$U$63,47)*G56))) -> 0 | T56: =R56-U56-S56 -> 0 | U56: =K56+ROUND(SUM(M56+N56+P56+Q56)*L56,2) -> 0
A57: 45 | B57: SEPTEMBER TOTAL | E57: =SUM(E53:E56) -> 131290.19 | F57: =SUM(F53:F56) -> 10597.45 | H57: =SUM(H53:H56) -> 1547.59 | I57: =SUM(I53:I56) -> 179.5 | K57: =SUM(K53:K56) -> 1522.67 | M57: =SUM(M53:M56) -> 11255.43 | N57: 0 | O57: 156392.83 | P57: 25006.31 | Q57: 5842.45 | R57: 187241.59 | S57: 183498.71 | T57: 1989.16 | U57: 1753.72
A58: 46 | B58: OCTOBER | C58: ISS & PROFESSIONAL SERVICES STAFF (CONTRACTED ISS JOB DUTIES ONLY) | D58: =ROUNDDOWN((E58+E59)/VLOOKUP('Administrator Regression Table'!$P$1,'Administrator Regression Table'!$M$1:$N$9,2),0) -> 40 | E58: 114217.06 | F58: 10597.45 | G58: =IF((E58+F58)<=0,0,SUM(E58+F58)/SUM(E58+F58+H58+I58+K58)) -> 1 | H58: 0 | I58: 0 | J58: =IF((H58+I58)<=0,0,SUM(H58+I58)/SUM(E58+F58+H58+I58+K58)) -> 0 | K58: 0 | L58: =IF(K58<=0,0,K58/SUM(E58+F58+H58+I58+K58)) -> 0 | M58: 10437.06 | N58: 0 | O58: =SUM(E58+F58+H58+I58+M58+N58+K58) -> 135251.57 | P58: 23217.83 | Q58: 5365.51 | R58: =SUM(O58:Q58) -> 163834.91 | S58: =ROUND(SUM(E58+F58),2)+ROUND(SUM(M58+N58+P58+Q58)*G58,2) -> 163834.91 | T58: 0 | U58: =K58+ROUND(SUM(M58+N58+P58+Q58)*L58,2) -> 0
A59: 47 | B59: OCTOBER | C59: ISS & ADMINISTRATIVE OR NON-CONTRACTED STAFF (STAFF PERFORMS CONTRACTED & NON-CONTRACTED AND/OR ADMINSTRATIVE WORK) | E59: 17073.13 | F59: 0 | G59: =IF((E59+F59)<=0,0,SUM(E59+F59)/SUM(E59+F59+H59+I59+K59)) -> 0.8400936087 | H59: 1547.59 | I59: 179.5 | J59: =IF((H59+I59)<=0,0,SUM(H59+I59)/SUM(E59+F59+H59+I59+K59)) -> 0.08498250003 | K59: 1522.67 | L59: =IF(K59<=0,0,K59/SUM(E59+F59+H59+I59+K59)) -> 0.07492389124 | M59: 818.37 | N59: 0 | O59: =SUM(E59+F59+H59+I59+M59+N59+K59) -> 21141.26 | P59: 1788.48 | Q59: 476.94 | R59: =SUM(O59:Q59) -> 23406.68 | S59: =ROUND(SUM(E59+F59),2)+ROUND(SUM(M59+N59+P59+Q59)*G59,2) -> 19663.8 | T59: =ROUND(SUM(H59+I59),2)+ROUND(SUM(M59+N59+P59+Q59)*J59,2) -> 1989.16 | U59: =K59+ROUND(SUM(M59+N59+P59+Q59)*L59,2) -> 1753.72
A60: 48 | B60: OCTOBER | C60: GH ONLY - ADMINISTRATOR PAYROLL | E60: 0 | F60: 0 | G60: =IF((E60+F60)<=0,0,SUM(E60+F60)/SUM(E60+F60+H60+I60+K60)) -> 0 | H60: 0 | I60: 0 | J60: =IF((H60+I60)<=0,0,SUM(H60+I60)/SUM(E60+F60+H60+I60+K60)) -> 0 | K60: 0 | L60: =IF(K60<=0,0,K60/SUM(E60+F60+H60+I60+K60)) -> 0 | M60: 0 | N60: 0 | O60: =SUM(E60+F60+H60+I60+M60+N60+K60) -> 0 | P60: 0 | Q60: 0 | R60: =SUM(O60:Q60) -> 0 | S60: =ROUND(SUM(E60+F60),2)+ROUND(SUM(M60+N60+P60+Q60)*G60,2) -> 0 | T60: =ROUND(SUM(H60+I60),2)+ROUND(SUM(M60+N60+P60+Q60)*J60,2) -> 0 | U60: =K60+ROUND(SUM(M60+N60+P60+Q60)*L60,2) -> 0
A61: 49 | B61: OCTOBER | C61: ADMINISTRATOR ISS PAYROLL FOR SL & COMBINED SL/GH AGENCIES WITH 20 OR FEWER ISS FTE'S | D61: =SUM(D58:D59) -> 40 | E61: 0 | F61: 0 | G61: =IF((E61+F61)<=0,0,SUM(E61+F61)/SUM(E61+F61+H61+I61+K61)) -> 0 | H61: 0 | I61: 0 | J61: =IF((H61+I61)<=0,0,SUM(H61+I61)/SUM(E61+F61+H61+I61+K61)) -> 0 | K61: 0 | L61: =IF(K61<=0,0,K61/SUM(E61+F61+H61+I61+K61)) -> 0 | M61: 0 | N61: 0 | O61: =SUM(E61+F61+H61+I61+M61+N61+K61) -> 0 | P61: 0 | Q61: 0 | R61: =SUM(O61:Q61) -> 0 | S61: =IF(G61=0,0,IF((M61+N61+P61+Q61)*G61+(E61+F61)<(HLOOKUP('Administrator Regression Table'!$Q$1,'Administrator Regression Table'!$R$1:$U$63,51)*G61),((M61+N61+P61+Q61)*G61+(E61+F61)),(HLOOKUP('Administrator Regression Table'!$Q$1,'Administrator Regression Table'!$R$1:$U$63,51)*G61))) -> 0 | T61: =R61-U61-S61 -> 0 | U61: =K61+ROUND(SUM(M61+N61+P61+Q61)*L61,2) -> 0
A62: 50 | B62: OCTOBER TOTAL | E62: =SUM(E58:E61) -> 131290.19 | F62: =SUM(F58:F61) -> 10597.45 | H62: =SUM(H58:H61) -> 1547.59 | I62: =SUM(I58:I61) -> 179.5 | K62: =SUM(K58:K61) -> 1522.67 | M62: =SUM(M58:M61) -> 11255.43 | N62: 0 | O62: 156392.83 | P62: 25006.31 | Q62: 5842.45 | R62: 187241.59 | S62: 183498.71 | T62: 1989.16 | U62: 1753.72
A63: 51 | B63: NOVEMBER | C63: ISS & PROFESSIONAL SERVICES STAFF (CONTRACTED ISS JOB DUTIES ONLY) | D63: =ROUNDDOWN((E63+E64)/VLOOKUP('Administrator Regression Table'!$P$1,'Administrator Regression Table'!$M$1:$N$9,2),0) -> 40 | E63: 114217.06 | F63: 10597.45 | G63: =IF((E63+F63)<=0,0,SUM(E63+F63)/SUM(E63+F63+H63+I63+K63)) -> 1 | H63: 0 | I63: 0 | J63: =IF((H63+I63)<=0,0,SUM(H63+I63)/SUM(E63+F63+H63+I63+K63)) -> 0 | K63: 0 | L63: =IF(K63<=0,0,K63/SUM(E63+F63+H63+I63+K63)) -> 0 | M63: 10437.06 | N63: 0 | O63: =SUM(E63+F63+H63+I63+M63+N63+K63) -> 135251.57 | P63: 23217.83 | Q63: 5365.51 | R63: =SUM(O63:Q63) -> 163834.91 | S63: =ROUND(SUM(E63+F63),2)+ROUND(SUM(M63+N63+P63+Q63)*G63,2) -> 163834.91 | T63: 0 | U63: =K63+ROUND(SUM(M63+N63+P63+Q63)*L63,2) -> 0
A64: 52 | B64: NOVEMBER | C64: ISS & ADMINISTRATIVE OR NON-CONTRACTED STAFF (STAFF PERFORMS CONTRACTED & NON-CONTRACTED AND/OR ADMINSTRATIVE WORK) | E64: 17073.13 | F64: 0 | G64: =IF((E64+F64)<=0,0,SUM(E64+F64)/SUM(E64+F64+H64+I64+K64)) -> 0.8400936087 | H64: 1547.59 | I64: 179.5 | J64: =IF((H64+I64)<=0,0,SUM(H64+I64)/SUM(E64+F64+H64+I64+K64)) -> 0.08498250003 | K64: 1522.67 | L64: =IF(K64<=0,0,K64/SUM(E64+F64+H64+I64+K64)) -> 0.07492389124 | M64: 818.37 | N64: 0 | O64: =SUM(E64+F64+H64+I64+M64+N64+K64) -> 21141.26 | P64: 1788.48 | Q64: 476.94 | R64: =SUM(O64:Q64) -> 23406.68 | S64: =ROUND(SUM(E64+F64),2)+ROUND(SUM(M64+N64+P64+Q64)*G64,2) -> 19663.8 | T64: =ROUND(SUM(H64+I64),2)+ROUND(SUM(M64+N64+P64+Q64)*J64,2) -> 1989.16 | U64: =K64+ROUND(SUM(M64+N64+P64+Q64)*L64,2) -> 1753.72
A65: 53 | B65: NOVEMBER | C65: GH ONLY - ADMINISTRATOR PAYROLL | E65: 0 | F65: 0 | G65: =IF((E65+F65)<=0,0,SUM(E65+F65)/SUM(E65+F65+H65+I65+K65)) -> 0 | H65: 0 | I65: 0 | J65: =IF((H65+I65)<=0,0,SUM(H65+I65)/SUM(E65+F65+H65+I65+K65)) -> 0 | K65: 0 | L65: =IF(K65<=0,0,K65/SUM(E65+F65+H65+I65+K65)) -> 0 | M65: 0 | N65: 0 | O65: =SUM(E65+F65+H65+I65+M65+N65+K65) -> 0 | P65: 0 | Q65: 0 | R65: =SUM(O65:Q65) -> 0 | S65: =ROUND(SUM(E65+F65),2)+ROUND(SUM(M65+N65+P65+Q65)*G65,2) -> 0 | T65: =ROUND(SUM(H65+I65),2)+ROUND(SUM(M65+N65+P65+Q65)*J65,2) -> 0 | U65: =K65+ROUND(SUM(M65+N65+P65+Q65)*L65,2) -> 0
A66: 54 | B66: NOVEMBER | C66: ADMINISTRATOR ISS PAYROLL FOR SL & COMBINED SL/GH AGENCIES WITH 20 OR FEWER ISS FTE'S | D66: =SUM(D63:D64) -> 40 | E66: 0 | F66: 0 | G66: =IF((E66+F66)<=0,0,SUM(E66+F66)/SUM(E66+F66+H66+I66+K66)) -> 0 | H66: 0 | I66: 0 | J66: =IF((H66+I66)<=0,0,SUM(H66+I66)/SUM(E66+F66+H66+I66+K66)) -> 0 | K66: 0 | L66: =IF(K66<=0,0,K66/SUM(E66+F66+H66+I66+K66)) -> 0 | M66: 0 | N66: 0 | O66: =SUM(E66+F66+H66+I66+M66+N66+K66) -> 0 | P66: 0 | Q66: 0 | R66: =SUM(O66:Q66) -> 0 | S66: =IF(G66=0,0,IF((M66+N66+P66+Q66)*G66+(E66+F66)<(HLOOKUP('Administrator Regression Table'!$Q$1,'Administrator Regression Table'!$R$1:$U$63,55)*G66),((M66+N66+P66+Q66)*G66+(E66+F66)),(HLOOKUP('Administrator Regression Table'!$Q$1,'Administrator Regression Table'!$R$1:$U$63,55)*G66))) -> 0 | T66: =R66-U66-S66 -> 0 | U66: =K66+ROUND(SUM(M66+N66+P66+Q66)*L66,2) -> 0
A67: 55 | B67: NOVEMBER TOTAL | E67: =SUM(E63:E66) -> 131290.19 | F67: =SUM(F63:F66) -> 10597.45 | H67: =SUM(H63:H66) -> 1547.59 | I67: =SUM(I63:I66) -> 179.5 | K67: =SUM(K63:K66) -> 1522.67 | M67: =SUM(M63:M66) -> 11255.43 | N67: 0 | O67: 156392.83 | P67: 25006.31 | Q67: 5842.45 | R67: 187241.59 | S67: 183498.71 | T67: 1989.16 | U67: 1753.72
A68: 56 | B68: DECEMBER / 4TH QUARTER | C68: ISS & PROFESSIONAL SERVICES STAFF (CONTRACTED ISS JOB DUTIES ONLY) | D68: =ROUNDDOWN((E68+E69)/VLOOKUP('Administrator Regression Table'!$P$1,'Administrator Regression Table'!$M$1:$N$9,2),0) -> 40 | E68: 114217.06 | F68: 10597.45 | G68: =IF((E68+F68)<=0,0,SUM(E68+F68)/SUM(E68+F68+H68+I68+K68)) -> 1 | H68: 0 | I68: 0 | J68: =IF((H68+I68)<=0,0,SUM(H68+I68)/SUM(E68+F68+H68+I68+K68)) -> 0 | K68: 0 | L68: =IF(K68<=0,0,K68/SUM(E68+F68+H68+I68+K68)) -> 0 | M68: 10437.06 | N68: 0 | O68: =SUM(E68+F68+H68+I68+M68+N68+K68) -> 135251.57 | P68: 23217.83 | Q68: 5365.51 | R68: =SUM(O68:Q68) -> 163834.91 | S68: =ROUND(SUM(E68+F68),2)+ROUND(SUM(M68+N68+P68+Q68)*G68,2) -> 163834.91 | T68: 0 | U68: =K68+ROUND(SUM(M68+N68+P68+Q68)*L68,2) -> 0
A69: 57 | B69: DECEMBER / 4TH QUARTER | C69: ISS & ADMINISTRATIVE OR NON-CONTRACTED STAFF (STAFF PERFORMS CONTRACTED & NON-CONTRACTED AND/OR ADMINSTRATIVE WORK) | E69: 17073.13 | F69: 0 | G69: =IF((E69+F69)<=0,0,SUM(E69+F69)/SUM(E69+F69+H69+I69+K69)) -> 0.8400936087 | H69: 1547.59 | I69: 179.5 | J69: =IF((H69+I69)<=0,0,SUM(H69+I69)/SUM(E69+F69+H69+I69+K69)) -> 0.08498250003 | K69: 1522.67 | L69: =IF(K69<=0,0,K69/SUM(E69+F69+H69+I69+K69)) -> 0.07492389124 | M69: 818.37 | N69: 0 | O69: =SUM(E69+F69+H69+I69+M69+N69+K69) -> 21141.26 | P69: 1788.48 | Q69: 476.94 | R69: =SUM(O69:Q69) -> 23406.68 | S69: =ROUND(SUM(E69+F69),2)+ROUND(SUM(M69+N69+P69+Q69)*G69,2) -> 19663.8 | T69: =ROUND(SUM(H69+I69),2)+ROUND(SUM(M69+N69+P69+Q69)*J69,2) -> 1989.16 | U69: =K69+ROUND(SUM(M69+N69+P69+Q69)*L69,2) -> 1753.72
A70: 58 | B70: DECEMBER / 4TH QUARTER | C70: GH ONLY - ADMINISTRATOR PAYROLL | E70: 0 | F70: 0 | G70: =IF((E70+F70)<=0,0,SUM(E70+F70)/SUM(E70+F70+H70+I70+K70)) -> 0 | H70: 0 | I70: 0 | J70: =IF((H70+I70)<=0,0,SUM(H70+I70)/SUM(E70+F70+H70+I70+K70)) -> 0 | K70: 0 | L70: =IF(K70<=0,0,K70/SUM(E70+F70+H70+I70+K70)) -> 0 | M70: 0 | N70: 0 | O70: =SUM(E70+F70+H70+I70+M70+N70+K70) -> 0 | P70: 0 | Q70: 0 | R70: =SUM(O70:Q70) -> 0 | S70: =ROUND(SUM(E70+F70),2)+ROUND(SUM(M70+N70+P70+Q70)*G70,2) -> 0 | T70: =ROUND(SUM(H70+I70),2)+ROUND(SUM(M70+N70+P70+Q70)*J70,2) -> 0 | U70: =K70+ROUND(SUM(M70+N70+P70+Q70)*L70,2) -> 0
A71: 59 | B71: DECEMBER / 4TH QUARTER | C71: ADMINISTRATOR ISS PAYROLL FOR SL & COMBINED SL/GH AGENCIES WITH 20 OR FEWER ISS FTE'S | D71: =SUM(D68:D69) -> 40 | E71: 0 | F71: 0 | G71: =IF((E71+F71)<=0,0,SUM(E71+F71)/SUM(E71+F71+H71+I71+K71)) -> 0 | H71: 0 | I71: 0 | J71: =IF((H71+I71)<=0,0,SUM(H71+I71)/SUM(E71+F71+H71+I71+K71)) -> 0 | K71: 0 | L71: =IF(K71<=0,0,K71/SUM(E71+F71+H71+I71+K71)) -> 0 | M71: 0 | N71: 0 | O71: =SUM(E71+F71+H71+I71+M71+N71+K71) -> 0 | P71: 0 | Q71: 0 | R71: =SUM(O71:Q71) -> 0 | S71: =IF(G71=0,0,IF((M71+N71+P71+Q71)*G71+(E71+F71)<(HLOOKUP('Administrator Regression Table'!$Q$1,'Administrator Regression Table'!$R$1:$U$63,59)*G71),((M71+N71+P71+Q71)*G71+(E71+F71)),(HLOOKUP('Administrator Regression Table'!$Q$1,'Administrator Regression Table'!$R$1:$U$63,59)*G71))) -> 0 | T71: =R71-U71-S71 -> 0 | U71: =K71+ROUND(SUM(M71+N71+P71+Q71)*L71,2) -> 0
A72: 60 | B72: DECEMBER TOTAL | E72: =SUM(E68:E71) -> 131290.19 | F72: =SUM(F68:F71) -> 10597.45 | H72: =SUM(H68:H71) -> 1547.59 | I72: =SUM(I68:I71) -> 179.5 | K72: =SUM(K68:K71) -> 1522.67 | M72: =SUM(M68:M71) -> 11255.43 | N72: 0 | O72: 156392.83 | P72: 25006.31 | Q72: 5842.45 | R72: 187241.59 | S72: 183498.71 | T72: 1989.16 | U72: 1753.72
A73: 61 | B73: ANNUAL TOTALS | C73: ISS & PROFESSIONAL SERVICES STAFF (CONTRACTED ISS JOB DUTIES ONLY) | D73: =ROUNDDOWN(IF(B10="Quarterly",SUM(D23+D38+D53+D68)/12,SUM(D13+D18+D23+D28+D33+D38+D43+D48+D53+D58+D63+D68)/12),0) -> 40 | E73: =SUM(E13+E18+E23+E28+E33+E38+E43+E48+E53+E58+E63+E68) -> 1370604.72 | F73: 127169.4 | G73: =IF((E73+F73)<=0,0,SUM(E73+F73)/SUM(E73+F73+H73+I73+K73)) -> 1 | H73: =SUM(H13+H18+H23+H28+H33+H38+H43+H48+H53+H58+H63+H68) -> 0 | I73: 0 | J73: =IF((H73+I73)<=0,0,SUM(H73+I73)/SUM(E73+F73+H73+I73+K73)) -> 0 | K73: =SUM(K13+K18+K23+K28+K33+K38+K43+K48+K53+K58+K63+K68) -> 0 | L73: =IF(K73<=0,0,K73/SUM(E73+F73+H73+I73+K73)) -> 0 | M73: =SUM(M13+M18+M23+M28+M33+M38+M43+M48+M53+M58+M63+M68) -> 125244.72 | N73: 0 | O73: =SUM(E73+F73+H73+I73+M73+N73+K73) -> 1623018.84 | P73: =SUM(P13+P18+P23+P28+P33+P38+P43+P48+P53+P58+P63+P68) -> 278613.96 | Q73: 64386.12 | R73: =SUM(O73:Q73) -> 1966018.92 | S73: =SUM(S13+S18+S23+S28+S33+S38+S43+S48+S53+S58+S63+S68) -> 1966018.92 | T73: 0 | U73: 0
A74: 62 | B74: ANNUAL TOTALS | C74: ISS & ADMINISTRATIVE OR NON-CONTRACTED STAFF (STAFF PERFORMS CONTRACTED & NON-CONTRACTED AND/OR ADMINSTRATIVE WORK) | E74: 204877.56 | F74: 0 | G74: =IF((E74+F74)<=0,0,SUM(E74+F74)/SUM(E74+F74+H74+I74+K74)) -> 0.8400936087 | H74: 18750.58 | I74: 1974.5 | J74: =IF((H74+I74)<=0,0,SUM(H74+I74)/SUM(E74+F74+H74+I74+K74)) -> 0.08498250003 | K74: =SUM(K14+K19+K24+K29+K34+K39+K44+K49+K54+K59+K64+K69) -> 18272.04 | L74: =IF(K74<=0,0,K74/SUM(E74+F74+H74+I74+K74)) -> 0.07492389124 | M74: 9820.44 | N74: 0 | O74: =SUM(E74+F74+H74+I74+M74+N74+K74) -> 253695.12 | P74: 21461.76 | Q74: 5723.28 | R74: =SUM(O74:Q74) -> 280880.16 | S74: 235965.6 | T74: 23869.92 | U74: 21044.64
A75: 63 | B75: ANNUAL TOTALS | C75: GH ONLY - ADMINISTRATOR PAYROLL | E75: 0 | F75: 0 | G75: =IF((E75+F75)<=0,0,SUM(E75+F75)/SUM(E75+F75+H75+I75+K75)) -> 0 | H75: 0 | I75: 0 | J75: =IF((H75+I75)<=0,0,SUM(H75+I75)/SUM(E75+F75+H75+I75+K75)) -> 0 | K75: =SUM(K15+K20+K25+K30+K35+K40+K45+K50+K55+K60+K65+K70) -> 0 | L75: =IF(K75<=0,0,K75/SUM(E75+F75+H75+I75+K75)) -> 0 | M75: 0 | N75: 0 | O75: =SUM(E75+F75+H75+I75+M75+N75+K75) -> 0 | P75: 0 | Q75: 0 | R75: =SUM(O75:Q75) -> 0 | S75: =SUM(S15+S20+S25+S30+S35+S40+S45+S50+S55+S60+S65+S70) -> 0 | T75: 0 | U75: 0
A76: 64 | B76: ANNUAL TOTALS | C76: ADMINISTRATOR ISS PAYROLL FOR SL & COMBINED SL/GH AGENCIES WITH 20 OR FEWER ISS FTE'S | D76: =SUM(D73:D74) -> 40 | E76: 0 | F76: 0 | G76: =IF((E76+F76)<=0,0,SUM(E76+F76)/SUM(E76+F76+H76+I76+K76)) -> 0 | H76: 0 | I76: 0 | J76: =IF((H76+I76)<=0,0,SUM(H76+I76)/SUM(E76+F76+H76+I76+K76)) -> 0 | K76: =SUM(K16+K21+K26+K31+K36+K41+K46+K51+K56+K61+K66+K71) -> 0 | L76: =IF(K76<=0,0,K76/SUM(E76+F76+H76+I76+K76)) -> 0 | M76: 0 | N76: 0 | O76: =SUM(E76+F76+H76+I76+M76+N76+K76) -> 0 | P76: 0 | Q76: 0 | R76: =SUM(O76:Q76) -> 0 | S76: 0 | T76: 0 | U76: 0
A77: 65 | B77: ANNUAL TOTALS | E77: =SUM(E73:E76) -> 1575482.28 | F77: =SUM(F73:F76) -> 127169.4 | G77: =IF((E77+F77)<=0,0,SUM(E77+F77)/SUM(E77+F77+H77+I77+K77)) -> 0.9776090794 | H77: =SUM(H73:H76) -> 18750.58 | I77: =SUM(I73:I76) -> 1974.5 | J77: =IF((H77+I77)<=0,0,SUM(H77+I77)/SUM(E77+F77+H77+I77+K77)) -> 0.01189968954 | K77: =SUM(K73:K76) -> 18272.04 | L77: =IF(K77<=0,0,K77/SUM(E77+F77+H77+I77+K77)) -> 0.01049123107 | M77: =SUM(M73:M76) -> 135065.16 | N77: 0 | O77: 1876713.96 | P77: 300075.72 | Q77: 70109.4 | R77: 2246899.08 | S77: 2201984.52 | T77: 23869.92 | U77: 21044.64
F78: Posts to Sch G, Line 25 | S78: Posts to Sch G, Line 24 (less OT-see E65) | T78: DO NOT INCLUDE ON SCHEDULE C
B80: DSHS/DDA Schedule B (Rev. 12/2019)

Sheet C - Non-ISS Expenses
B1: SCHEDULE C
G3: =_M000001 -> 3S - ABC Residential Services
G4: PROVIDER NAME
B9: 1 | C9: ARE PROFESSIONAL SERVICES CONTRACTED OR PURCHASED FOR CLIENTS SUPPORTED BY THE AGENCY? | H9: Yes
C10: If Yes, include the cost of purchased professional services for settled programs on Schedule G, line 29-31. Professional Services Staff are Contracted or purchased professional services must be authorized in the client assessment. Provider must have supporting documentation for amounts reported and made available upon request.
B14: 2 | C14: ALLOCATION OF SHARED COSTS
C16: a | D16: Does your agency operate multiple programs contracted with DDA, e.g., Supported Living and Group Homes, or a combination of DDA and other contracts? | H16: Yes
C18: b | D18: If yes to question 2a, do you allocate administrative and program overhead costs? | H18: Yes
C20: c | D20: What is your agency's method of allocating costs? | H20: Other Method - Please describe
D21: *If you answered "Other Method" for question 2c please describe your agencies allocation method in the box below:
C22: Agency uses direct care hours for allocation purposes.
B25: ADMINISTRATIVE & OPERATIONS COSTS (NON-ISS COSTS) | E25: AGENCY TYPE (Select from dropdown list) | F25: A | G25: B | H25: C
F26: SL Supported Living | G26: GH Group Home | H26: GTH Group Training Home
B28: NON-CLIENT RELATED EXPENSES
B29: 1 | C29: ADMINISTRATIVE/ NON-ISS PAYROLL EXPENSES (Do not include adminstrative payroll expenses reported on Schedule B, Columns G & H) | E29: =SUM(F29:H29) -> 174201.305 | F29: =7227+18122.56+29432+66478.82+8577.91-0.005 -> 129838.285 | G29: =10083.21+1301.06+2748.75+23216+7014-_C000280 -> 31108.26 | H29: 13254.76
C30: Adminstrator compensation for agencies with 21 or more FTE's, Administrative/Non-ISS staff compensation, Employer Paid Adminstrative/Non-ISS Payroll Taxes & Benefits, Administrative/Non-ISS Purchased Professional Services (i.e. CPA, Janitorial Svs, Lawn Svs), & Management Fees
B31: 2 | C31: PROGRAM OPERATIONS EXPENSES | E31: =SUM(F31:H31) -> 31594.99 | F31: =4717.85+2744.93+2144.48+5575.64+6433.43+2750+2500+500 -> 27366.33 | G31: =715.58+416.34+325.26+845.69+975.79+750+200-H31 -> 3241.12 | H31: 987.54
C32: Administrative Supplies, Administrative Transportation Expenses (i.e. travel, mileage, lodging, public transportation), Advertising Expense, Professional Liability Insurance, & any other General Administrative Expenses
B33: 3 | C33: CAPITAL & PROPERTY EXPENSES | E33: =SUM(F33:H33) -> 87386.35 | F33: =686.23+4717.85+24018.15+4460.51+3602.72+3002.27+3002.27+1750+500+1200+2000 -> 48940 | G33: =104.08+715.58+3642.96+676.55+546.44+455.37+455.37+11450+800+800+2500+6800+4500+2800+2200-H33 -> 25116.37 | H33: 13329.98
C34: Depreciation - Land Improvements, Buildings, Building Improvements, Leasehold Improvements, Furniture & Equipment, Communications Expense, Facility Insurance, Office Rent, Lease Payments, Utilities, Property Taxes, Minor Equipment, Other Property
B35: 4 | C35: INTEREST & TAX EXPENSES | E35: =SUM(F35:H35) -> 8806.88 | F35: =1818.52+3860.06+2200 -> 7878.58 | G35: =275.82+585.48+67-H35 -> 680.64 | H35: 247.66
C36: Working Capital, Property, Line of Credit Debt Expense, Business Taxes (Does not include portion of B & O tax charged as ISS Payroll Tax)
B37: NON-ISS CLIENT RELATED EXPENSES
B38: 5 | C38: MAINTENANCE/ LAUNDRY/ HOUSEKEEPING/ DIETARY EXPENSES (GROUP HOME ONLY) | E38: =SUM(F38:H38) -> 36563.05 | F38: 15731.98 | G38: 19065.73 | H38: 1765.34
C39: Salaries and Wages, Fringe Benefits and Payroll Taxes, Supplies & Materials, Purchased Services
B40: 6 | C40: TRANSPORTATION EXPENSES | E40: =SUM(F40:H40) -> 29918.68 | F40: =9264.15 -> 9264.15 | G40: 17500.14 | H40: 3154.39
C41: Staff Mileage Reimbursement, All Other Client Transportation Expense (Agency Vehicle Fuel, Maint., Depreciation; Public Trans. Etc.)
B42: 7 | C42: OTHER NON-ISS CLIENT RELATED EXPENSES | E42: =SUM(F42:H42) -> 77292.715 | F42: 48041.365 | G42: 23814.59 | H42: 5436.76
C43: Overnight Staff Coverage Lodging Expenses (housing units provided for on-duty staff - not primary dwelling for staff), Education and In-Service Training & Supplies, Activities and Habilitative Supplies & Other Expenses, Nursing Supplies Expense, Food Costs - Resident (Group Homes primarily), Food Costs - Staff
B44: TOTAL NON-ISS PROGRAM EXPENSES | E44: =_C000275+E31+E33+E35+E38+E40+E42 -> 445763.97 | F44: =_C000276+F31+F33+F35+F38+F40+F42 -> 287060.69 | G44: =_C000277+G31+G33+G35+G38+G40+G42 -> 120526.85 | H44: =_C000280+H31+H33+H35+H38+H40+H42 -> 38176.43
B46: DSHS/DDA Schedule C (Rev. 12/2019)

Sheet D - Revenue
B1: SCHEDULE D
G3: =_M000001 -> 3S - ABC Residential Services
G4: PROVIDER NAME
B6: RESIDENTIAL SERVICES REVENUE | E6: TOTALS | F6: A | G6: B | H6: C
F7: ='C - Non-ISS Expenses'!_M000101 -> SL Supported Living | G7: ='C - Non-ISS Expenses'!_M000102 -> GH Group Home | H7: ='C - Non-ISS Expenses'!_M000105 -> GTH Group Training Home
B8: 1 | C8: REVENUE FOR SERVICES PROVIDED | E8: =SUM(F8:H8) -> 2689236.31 | F8: 1622205.64 | G8: 608645.42 | H8: 458385.25
C9: State Payments/Reimbursements for ISS/DSHS Clients (Total Daily Rate), ISS/DSHS Client Participation, Prior Years Settlements Deducted from State Payments, Non DSHS Client Payments
B10: 2 | C10: OTHER OPERATING REVENUE | E10: =SUM(F10:H10) -> 19950 | F10: 15750 | G10: 2000 | H10: 2200
C11: Summer Programs, Client Evaluation, Non-DSHS Revenue
B12: 3 | C12: NON-OPERATING REVENUE | E12: =SUM(F12:H12) -> 2232 | F12: 1032 | G12: 744 | H12: 456
C13: Interest Income, Cash Donations & Contributions, Noncash Donations & Contributions
B14: TOTAL RESIDENTIAL SERVICES REVENUE | E14: =E8+E10+E12 -> 2711418.31 | F14: =F8+F10+F12 -> 1638987.64 | G14: =G8+G10+G12 -> 611389.42 | H14: =H8+H10+H12 -> 461041.25
B16: DSHS/DDA Schedule D (Rev. 12/2019)

Sheet E - Residential Staffing
B1: SCHEDULE E
M3: ='G - ISS Settlement'!C3 -> 3S - ABC Residential Services
M4: PROVIDER NAME
A7: IMPORTANT , PLEASE READ before completing schedule: COMPLETE A SEPARATE SCHEDULE FOR EACH LOCATION BY: PROGRAM TYPE, CITY, AND COUNTY FOR ADDITIONAL COPIES OF SCHEDULE E CONTACT YOUR AGENCY'S RATE ANALYST Reporting Period: January 1, 2019 to December 31, 2019 (One Calendar Year, 12 months, 2019)
A8: The schedule(s) will be reviewed by the rate analyst to ensure the Agency is rporting contracts, programs, and locations separately. Any cost reports found to be incomplete will be returned to the agency for correction.
B10: 1. AGENCY INFORMATION:
C11: Where are the Services Provided?
C13: PROGRAM TYPE | F13: PROGRAM NAME | L13: CITY | M13: COUNTY
C14: SL Supported Living | F14: 3S - ABC Residential Services | L14: Small Town | M14: Clark
B16: 2. CONTACT INFORMATION:
C17: Name (Person Completing Schedule): | F17: John Doe
C18: Title (Person Completing Schedule): | F18: Human Resources Director
C19: Telephone Number: | F19: 360-555-9876
C20: E-Mail Address: | F20: jdoe@gmail.com
B22: 3. BOARD OF DIRECTORS INFORMATION:
C23: Non-Profit Agencies only, please fill out the following information if you have a Board of Directors or other governing board. Do not include advisory committees or other non-governing, non-voting boards.
C24: a) Board of Directors - Number of Members (total number of positions)? | M24: 5
C25: b) Board of Directors -Total number of voting board members? | M25: 5
C26: c) Voting Board Members - How many are people with intellectual disabilities or other developmental disabilities who are recipients of services (from this or any agency)? | M26: 1
C27: d) Voting Board Members - How many are family members (parents, siblings, or other relatives) of people with intellectual disabilities or other developmental disabilities who are recipients of services (from this or any agency)? | M27: 0
B29: 4. CLIENT INFORMATION:
C30: Average Monthly Count of Clients supported in this program? | M30: 23
B32: 5. EMPLOYEE BENEFITS:
C33: In addition to wages, does your agency provide benefits to ISS staff? If Yes, check all that apply | M33: Yes
C34: Medical Insurance (paid in whole or in part by agency) | M34: X
C35: Dental Insurance (paid in whole or in part by agency) | M35: X
C36: Retirement (paid in whole or in part by agency) | M36: X
C37: Paid Sick Leave | M37: X
C38: Paid Vacation | M38: X
C39: Short-Term Disability
C40: Long-Term Disability | M40: X
C41: Jury Duty Leave | M41: X
C42: Bereavement Leave | M42: X
C43: Vision Insurance
C44: Employee Assistance Plan
C45: Life Insurance | M45: X
B47: 6. RECRUITING:
C48: Difference in recruiting new staff from 1/1/2019 - 12/31/2019? (Only check boxes that apply) | I48: ENTRY LEVEL | J48: 1st LINE SUPERVISOR | K48: PROGRAM MANAGERS | L48: *SPECIALISTS (Recreation, behavioral, or staff trainers) | M48: NURSES (RN, LPN)
C49: Situation is worse than previous year (Harder to recruit) | I49: X
C50: Some improvement from previous year (Easier to recruit) | J50: X | K50: X | L50: X
C51: Definite improvement from previous year (Much easier to recruit)
C52: No difference from previous year | M52: X
B54: 7. STAFFING INFORMATION:
B56: SECTION 1A (TURNOVER)
D57: 1 | E57: 2 | F57: 3 | G57: 4 | H57: 5 | L57: 6 | M57: 7 | N57: 8
D58: Beginning of Year ISS Staffing Level | E58: Current ISS Staffing Level | F58: Full ISS Employment | G58: Number of ISS Staff Hired | H58: Number of ISS staff who left or had their employment terminated: | L58: Positions Available
B59: Line # | C59: POSITION TYPE | D59: Number of ISS staff (Full-time, Part-time, & Temp combined) on January 1st, 2019 | E59: Number of ISS staff (Full-time, Part-time, & Temp combined) on December 31, 2019 | F59: Number of ISS staff needed for full employment on December 31st 2019 | G59: Number of ISS staff hired during the calander year. | H59: a. Total ISS Staff who left/or had their employment terminated during the Calander Year (Col. 7.1 + Col. 7.4 - Col. 7.2) | I59: b. (Six Months) Jan 1, 2019 to June 30, 2019 | J59: c. (Six Months) July 1, 2019 to Dec. 31, 2019 (Col. 7.5a - Col. 7.5b) | K59: d. Optional: Within 90 days of hiring date (Calander Year) | L59: Number of vacancies on Dec 31, 2019 | M59: ISS Staff Turnover percentage | N59: Average number of days to fill vacant positions (Estimates accepted if unknown)
B60: 1 | C60: ENTRY LEVEL | D60: 42 | E60: 45 | F60: 50 | G60: 15 | H60: =D60+G60-E60 -> 12 | I60: 12 | J60: =H60-I60 -> 0 | K60: 5 | L60: =-E60+F60 -> 5 | M60: =H60/(0.5*(D60+E60)) -> 0.275862069 | N60: 0
B61: 2 | C61: 1st LINE SUPERVISORS | D61: 15 | E61: 18 | F61: 22 | G61: 3 | H61: =D61+G61-E61 -> 0 | I61: 0 | J61: =H61-I61 -> 0 | K61: 1 | L61: =-E61+F61 -> 4 | M61: 0 | N61: 0
B62: 3 | C62: PROGRAM MANAGERS | D62: 2 | E62: 2 | F62: 2 | G62: 1 | H62: =D62+G62-E62 -> 1 | I62: 0 | J62: =H62-I62 -> 1 | K62: 1 | L62: =-E62+F62 -> 0 | M62: 0.5 | N62: 0
B63: 4 | C63: *SPECIALISTS (recreation, behavioral, or staff trainers, etc.) | D63: 20 | E63: 15 | F63: 25 | G63: 2 | H63: =D63+G63-E63 -> 7 | I63: 5 | J63: =H63-I63 -> 2 | K63: 2 | L63: =-E63+F63 -> 10 | M63: 0.4 | N63: 0
B64: 5 | C64: NURSES (RN, LPN) | D64: 1 | E64: 1 | F64: 2 | G64: 0 | H64: =D64+G64-E64 -> 0 | I64: 0 | J64: =H64-I64 -> 0 | K64: 1 | L64: =-E64+F64 -> 1 | M64: 0 | N64: 0
C65: TOTAL (Lines 1 thru 5) | D65: =SUM(D60:D64) -> 80 | E65: 81 | F65: 101 | G65: 21 | H65: 20 | I65: 17 | J65: 3 | K65: 10 | L65: =SUM(L60:L64) -> 20 | M65: 0.248447205
B67: SECTION 1B (WAGES)
B68: Line # | C68: POSITION TYPE | F68: Current starting wage for this type of position within your agency in 2019 (Hourly Rate) | H68: What is the average wage for this type of position after 2 years of employment (Hourly Rate)
B69: 6 | C69: ENTRY LEVEL | F69: 13 | H69: 14
B70: 7 | C70: 1st LINE SUPERVISORS | F70: 15 | H70: 16
B71: 8 | C71: PROGRAM MANAGERS | F71: 19 | H71: 22
B72: 9 | C72: *SPECIALISTS (recreation, behavioral, or staff trainers, etc.) | F72: 15 | H72: 18
B73: 10 | C73: NURSES (RN, LPN) | F73: 0 | H73: 0
B75: SECTION 1C (RETENTION)
B76: Line # | C76: Length of Time with your Agency | G76: Using the total number of ISS staff from section 1A, column 2 (current ISS staffing level), what is the length of time they have been with your agency? | I76: Using the total number of ISS staff from section 1A, column 5A (total ISS staff who left), what was the length of time they were with your agency?
B77: 11 | C77: LESS than 6 Months | G77: 8 | I77: 13
B78: 12 | C78: BETWEEN 6 and 12 months | G78: 21 | I78: 5
B79: 13 | C79: OVER 12 months | G79: 52 | I79: 2
C80: Total Staff by Length of Time (Total Lines 7 thru 9) | G80: =IF(SUM(G77:H79)<>E65,"Does not equal Section 1A, Col 2 Total",SUM(G77:H79)) -> 81 | I80: =IF(SUM(I77:J79)<>H65,"Does not equal Section 1A, Col 5a",SUM(I77:I79)) -> 20
B82: COMMENTS:
B84: DSHS/DDA Schedule E (Rev. 12/2019)

Sheet E - Residential Staffing Add'l
B1: SCHEDULE E
M3: ='G - ISS Settlement'!C3 -> 3S - ABC Residential Services
M4: PROVIDER NAME
A7: IMPORTANT , PLEASE READ before completing schedule: COMPLETE A SEPARATE SCHEDULE FOR EACH LOCATION BY: PROGRAM TYPE, CITY, AND COUNTY FOR ADDITIONAL COPIES OF SCHEDULE E CONTACT YOUR AGENCY'S RATE ANALYST Reporting Period: January 1, 2019 to December 31, 2019 (One Calendar Year, 12 months, 2019)
A8: The schedule(s) will be reviewed by the rate analyst to ensure the Agency is rporting contracts, programs, and locations separately. Any cost reports found to be incomplete will be returned to the agency for correction.
B10: 1. AGENCY INFORMATION:
C11: Where are the Services Provided?
C13: PROGRAM TYPE | F13: PROGRAM NAME | L13: CITY | M13: COUNTY
C14: GH Group Home | F14: 3S - ABC Residential Services | L14: New Town | M14: Thurston
B16: 2. CONTACT INFORMATION:
C17: Name (Person Completing Schedule): | F17: John Doe
C18: Title (Person Completing Schedule): | F18: Human Resources Director
C19: Telephone Number: | F19: 360-555-9876
C20: E-Mail Address: | F20: jdoe@gmail.com
B22: 3. BOARD OF DIRECTORS INFORMATION:
C23: Non-Profit Agencies only, please fill out the following information if you have a Board of Directors or other governing board. Do not include advisory committees or other non-governing, non-voting boards.
C24: a) Board of Directors - Number of Members (total number of positions)? | M24: 5
C25: b) Board of Directors -Total number of voting board members? | M25: 5
C26: c) Voting Board Members - How many are people with intellectual disabilities or other developmental disabilities who are recipients of services (from this or any agency)? | M26: 1
C27: d) Voting Board Members - How many are family members (parents, siblings, or other relatives) of people with intellectual disabilities or other developmental disabilities who are recipients of services (from this or any agency)? | M27: 0
B29: 4. CLIENT INFORMATION:
C30: Average Monthly Count of Clients supported in this program? | M30: 10
B32: 5. EMPLOYEE BENEFITS:
C33: In addition to wages, does your agency provide benefits to ISS staff? If Yes, check all that apply | M33: Yes
C34: Medical Insurance (paid in whole or in part by agency) | M34: X
C35: Dental Insurance (paid in whole or in part by agency) | M35: X
C36: Retirement (paid in whole or in part by agency)
C37: Paid Sick Leave | M37: X
C38: Paid Vacation | M38: X
C39: Short-Term Disability
C40: Long-Term Disability
C41: Jury Duty Leave
C42: Bereavement Leave
C43: Vision Insurance
C44: Employee Assistance Plan
C45: Life Insurance | M45: X
B47: 6. RECRUITING:
C48: Difference in recruiting new staff from 1/1/2019 - 12/31/2019? (Only check boxes that apply) | I48: ENTRY LEVEL | J48: 1st LINE SUPERVISOR | K48: PROGRAM MANAGERS | L48: *SPECIALISTS (Recreation, behavioral, or staff trainers) | M48: NURSES (RN, LPN)
C49: Situation is worse than previous year (Harder to recruit) | I49: X
C50: Some improvement from previous year (Easier to recruit)
C51: Definite improvement from previous year (Much easier to recruit)
C52: No difference from previous year | J52: x | K52: x | L52: x | M52: X
B54: 7. STAFFING INFORMATION:
B56: SECTION 1A (TURNOVER)
D57: 1 | E57: 2 | F57: 3 | G57: 4 | H57: 5 | L57: 6 | M57: 7 | N57: 8
D58: Beginning of Year ISS Staffing Level | E58: Current ISS Staffing Level | F58: Full ISS Employment | G58: Number of ISS Staff Hired | H58: Number of ISS staff who left or had their employment terminated: | L58: Positions Available
B59: Line # | C59: POSITION TYPE | D59: Number of ISS staff (Full-time, Part-time, & Temp combined) on January 1st, 2019 | E59: Number of ISS staff (Full-time, Part-time, & Temp combined) on December 31, 2019 | F59: Number of ISS staff needed for full employment on December 31st 2019 | G59: Number of ISS staff hired during the calander year. | H59: a. Total ISS Staff who left/or had their employment terminated during the Calander Year (Col. 7.1 + Col. 7.4 - Col. 7.2) | I59: b. (Six Months) Jan 1, 2019 to June 30, 2019 | J59: c. (Six Months) July 1, 2019 to Dec. 31, 2019 (Col. 7.5a - Col. 7.5b) | K59: d. Optional: Within 90 days of hiring date (Calander Year) | L59: Number of vacancies on Dec 31, 2019 | M59: ISS Staff Turnover percentage | N59: Average number of days to fill vacant positions (Estimates accepted if unknown)
B60: 1 | C60: ENTRY LEVEL | D60: 25 | E60: 20 | F60: 28 | G60: 8 | H60: =D60+G60-E60 -> 13 | I60: 5 | J60: =H60-I60 -> 8 | K60: 5 | L60: =-E60+F60 -> 8 | M60: =H60/(0.5*(D60+E60)) -> 0.5777777778 | N60: 0
B61: 2 | C61: 1st LINE SUPERVISORS | D61: 6 | E61: 5 | F61: 6 | G61: 0 | H61: =D61+G61-E61 -> 1 | I61: 0 | J61: =H61-I61 -> 1 | K61: 0 | L61: =-E61+F61 -> 1 | M61: 0.1818181818 | N61: 0
B62: 3 | C62: PROGRAM MANAGERS | D62: 1 | E62: 1 | F62: 1 | G62: 0 | H62: =D62+G62-E62 -> 0 | I62: 0 | J62: =H62-I62 -> 0 | K62: 0 | L62: =-E62+F62 -> 0 | M62: 0 | N62: 0
B63: 4 | C63: *SPECIALISTS (recreation, behavioral, or staff trainers, etc.) | D63: 4 | E63: 4 | F63: 4 | G63: 0 | H63: =D63+G63-E63 -> 0 | I63: 0 | J63: =H63-I63 -> 0 | K63: 0 | L63: =-E63+F63 -> 0 | M63: 0 | N63: 0
B64: 5 | C64: NURSES (RN, LPN) | D64: 1 | E64: 1 | F64: 1 | G64: 0 | H64: =D64+G64-E64 -> 0 | I64: 0 | J64: =H64-I64 -> 0 | K64: 0 | L64: =-E64+F64 -> 0 | M64: 0 | N64: 0
C65: TOTAL (Lines 1 thru 5) | D65: =SUM(D60:D64) -> 37 | E65: 31 | F65: 40 | G65: 8 | H65: 14 | I65: 5 | J65: 9 | K65: 5 | L65: =SUM(L60:L64) -> 9 | M65: 0.4117647059
B67: SECTION 1B (WAGES)
B68: Line # | C68: POSITION TYPE | F68: Current starting wage for this type of position within your agency in 2019 (Hourly Rate) | H68: What is the average wage for this type of position after 2 years of employment (Hourly Rate)
B69: 6 | C69: ENTRY LEVEL | F69: 13 | H69: 14
B70: 7 | C70: 1st LINE SUPERVISORS | F70: 18 | H70: 20
B71: 8 | C71: PROGRAM MANAGERS | F71: 21 | H71: 25
B72: 9 | C72: *SPECIALISTS (recreation, behavioral, or staff trainers, etc.) | F72: 37 | H72: 41
B73: 10 | C73: NURSES (RN, LPN) | F73: 26 | H73: 30
B75: SECTION 1C (RETENTION)
B76: Line # | C76: Length of Time with your Agency | G76: Using the total number of ISS staff from section 1A, column 2 (current ISS staffing level), what is the length of time they have been with your agency? | I76: Using the total number of ISS staff from section 1A, column 5A (total ISS staff who left), what was the length of time they were with your agency?
B77: 11 | C77: LESS than 6 Months | G77: 13 | I77: 12
B78: 12 | C78: BETWEEN 6 and 12 months | G78: 17 | I78: 0
B79: 13 | C79: OVER 12 months | G79: 1 | I79: 2
C80: Total Staff by Length of Time (Total Lines 7 thru 9) | G80: =IF(SUM(G77:H79)<>E65,"Does not equal Section 1A, Col 2 Total",SUM(G77:H79)) -> 31 | I80: =IF(SUM(I77:J79)<>H65,"Does not equal Section 1A, Col 5a",SUM(I77:I79)) -> 14
B82: COMMENTS:
B84: DSHS/DDA Schedule E (Rev. 12/2019)

Sheet F - Healthcare Expenses
B1: SCHEDULE F
J3: ='G - ISS Settlement'!C3 -> 3S - ABC Residential Services
J4: PROVIDER NAME
A6: INCLUDE ALL PROGRAMS FOR THE AGENCY ON THIS SCHEDULE
A7: Reporting Period: Dececmber 1, 2019 to December 31, 2019 (One Month)
B8: PROVIDER INFORMATION:
J9: Where are the Client Services Provided?
B10: PROGRAM TYPE | D10: PROVIDER NUMBER | E10: PROGRAM NAME | J10: CITY | K10: COUNTY
B11: Supported Living | D11: 111111 | E11: ABC Supported Living | J11: Small Town | K11: Pierce
B12: Group Home | D12: 333333 | E12: ABC Group Home | J12: Small Town | K12: Pierce
B13: Group Training Home
B14: Supported Living - SOLA
B16: CONTACT INFORMATION:
C18: Name (Person Completing Schedule) | E18: John Doe
C19: Title (Person Completing Schedule) | E19: Human Resources Manager
C20: Telephone Number: | E20: 360-555-9876
C21: E-Mail Address: | E21: john.doe@abc.org
B23: HEALTH INSURANCE:
B25: 1. Total Number of employees working for the agency | J25: 112
B26: 2. Total number of Employees from #1 averaging 29 or less hours per week | J26: 18
B27: 3. Total number of Employees from #1 averaging 30-39 hours per week | J27: 8
B28: 4. Total number of Employees from #1 averaging 40 or more hours per week **The sum of #2, 3, & 4 must equal the total number of employees reported on #1 | J28: 86
B29: 5. Currently how many employees who work in Supported Living (SL), Group Home (GH) or Children's Staffed Residential (CSR) are on your company provided health insurance plan? Please provide one number for all three types of services - add them all together if your company provides coverage for them separately, or accounts for them, separately. **This is for health insurance - do not include dental or other services (such as an Employee Assistance Plan (EAP), life insurance, disability insurance etc). Do not include coverage for employees who primarily work in other streams of revenue - private pay, home care, community access, supported employment etc. | J29: 90
B30: 6. Currently how many ISS hours per week does an employee have to work to be eligible for your company provided health insurance? | J30: 25
B31: 7. What is the average cost per employee (the premium per subscriber) of company provided health insurance? This is the cost to the company and does not include the participation by the employee - if your current premium is $100.00 per subscriber and employee pays $20.00 towards the premium then you would enter $80.00 | J31: 224.95
B32: 8. Currently how many of your employees work thirty (30) or more hours per week, but are not eligible for company provided health insurance? | J32: 0
B33: 9. Currently how many employees have waived your company provided health insurance, but will be required to take advantage of it in 2020? (Not 2019) | J33: 56
B34: 10. Taking into account your answers to question #4, #7 and #8; how many employees do you estimate will be enrolled in your company provided health insurance plan in 2020 to ensure compliance with the ACA? What is the total amount of enrollees you anticipate will be on your plan. (Not 2019) | J34: 75
B36: 11. Over a five year period what has been the percentage per employee (per subscriber) premium increase on your company provided health insurance? Please select a consecutive five year period, 2014 to 2018 or 2015 to 2019. Please represent this number as a percentage based on a per employee/subscriber cost increase from the prior year. For example: In 2015 the premium per employee was $100 and then increased to $150 in 2016; in 2016 you had a 50% increase in your per employee/subscriber premium costs. | F36: 2014 | G36: 2015 | H36: 2016 | I36: 2017 | J36: 2018 | K36: 2019
F37: 8% increase | G37: No Change | H37: 8.41% Increase | I37: 2.1% Increase | J37: No Change | K37: 9.25% Increase
B39: 12. Over the same five year period you included in question 9 above, did your company reduce benefits offered through your company provided health insurance plan to reduce the company costs per employee (per subscriber) because the proposed rate increase was too high? For example, did your company move to a less robust plan which provided less coverage for employees/subscribers and required higher co-pays and deductibles? Please answer with "Yes" or "No" | F39: 2014 | G39: 2015 | H39: 2016 | I39: 2017 | J39: 2018 | K39: 2019
F40: No | G40: No | H40: Yes | I40: Yes | J40: No | K40: Yes
B42: 13. How many clients does your company serve in SL, GH and/or LSR? Please add all numbers together and provide one number for all clients served in all three areas. | J42: 296
B43: DSHS/DDA Schedule F (Rev. 12/2019)

Sheet G - ISS Settlement
A1: SCHEDULE G
C3: =_M000001 -> 3S - ABC Residential Services
C4: PROVIDER NAME
A6: A | B6: B | C6: C
A7: REIMBURSEMENT SUMMARY
A8: Line | B8: Tiered ISS by Program Type | C8: ISS Reimbursement
A9: 1 | B9: SL Supported Living | C9: 1314015.48 | E9: =IF(B9="GH Group Home",2,IF(B9="GTH Group Training Home",3,IF(B9="SL Supported Living",1,"NA"))) -> 1
A10: =A9+1 -> 2 | B10: GH Group Home | C10: 494316.31 | E10: =IF(B10="GH Group Home",2,IF(B10="GTH Group Training Home",3,IF(B10="SL Supported Living",1,"NA"))) -> 2
A11: =A10+1 -> 3 | B11: GTH Group Training Home | C11: 386410.9 | E11: =IF(B11="GH Group Home",2,IF(B11="GTH Group Training Home",3,IF(B11="SL Supported Living",1,"NA"))) -> 3
A12: =+A11+1 -> 4 | B12: Sub-Total | C12: =SUM(C9:C11) -> 2194742.69
B14: Nurse Delegation, Staff Add On & COCA Cost of Care Adjustment | C14: ISS Reimbursement
A15: =+A12+1 -> 5 | B15: SL Nurse Delegation | C15: =2012.5+1668+1610-C16-C17 -> 3437 | E15: 1
A16: =+A15+1 -> 6 | B16: GH Nurse Delegation | C16: 1165.87 | E16: 2
A17: 7 | B17: GTH Nurse Delegation | C17: 687.63 | E17: 3
A18: 8 | B18: SL Staff Add On | C18: 251.52 | E18: 1
A19: 9 | B19: GH Staff Add On | C19: 312.85 | E19: 2
A20: 10 | B20: GTH Staff Add On | C20: 50 | E20: 3
A21: 11 | B21: SL COCA | C21: 0 | E21: 1
A22: 12 | B22: GH COCA | C22: 0 | E22: 2
A23: 13 | B23: GTH COCA | C23: 0 | E23: 3
A24: 14 | B24: Sub-Total | C24: =SUM(C15:C23) -> 5904.87
B26: Staff & Purchased Professional Services: Description (RN, LPN, DBT, Therapist, etc.) | C26: Professional Services ISS Reimbursement
A27: =+A24+1 -> 15 | B27: SL LPN M&C | C27: 8641.65 | E27: =IF(F27="GH",2,IF(F27="GT",3,IF(F27="SL",1,""))) -> 1 | F27: =LEFT(B27,2) -> SL
A28: =+A27+1 -> 16 | B28: SL RN M&C | C28: 5657.5 | E28: 1 | F28: SL
A29: 17 | C29: 0
A30: 18 | C30: 0
A31: 19 | C31: 0
A32: 20 | C32: 0
A33: 21 | B33: Sub-Total | C33: =SUM(C27:C32) -> 14299.15
A35: =+A33+1 -> 22 | B35: Total ISS Reimbursements paid by DSHS (carries to Line 23) | C35: =C12+C24+C33 -> 2214946.71
A36: SETTLEMENT
A37: =A35+1 -> 23 | B37: TOTAL REIMBURSED DOLLARS (Auto-filled from Line 22) | C37: =C35 -> 2214946.71
A38: =A37+1 -> 24 | B38: ISS Staff Payroll & Allowable Administrator ISS Payroll less Overtime (Auto-filled from Sch B, Row 65, Col R less Sch B, Row 65, Col E) | C38: ='B - ISS Payroll Expenses'!S77-'B - ISS Payroll Expenses'!F77 -> 2074815.12
A39: =A38+1 -> 25 | B39: ISS Overtime Staff Costs (Auto-filled from Sch B, Row 65, Col E) | C39: ='B - ISS Payroll Expenses'!F77 -> 127169.4
B40: Authorized Purchased Professional Services: (RN, LPN, DBT, Therapist, etc.)
A41: =A39+1 -> 26 | B41: SL Authorized ISS Purchased Professional Services | C41: 4892.25 | E41: =IF(F41="GH",2,IF(F41="GT",3,IF(F41="SL",1,""))) -> 1 | F41: =LEFT(B41,2) -> SL
A42: =A41+1 -> 27 | B42: GH Authorized ISS Purchased Professional Services | C42: 3701.99 | E42: =IF(F42="GH",2,IF(F42="GT",3,IF(F42="SL",1,""))) -> 2 | F42: =LEFT(B42,2) -> GH
A43: =A42+1 -> 28 | E43: =IF(F43="GH",2,IF(F43="GT",3,IF(F43="SL",1,""))) ->  | F43: =LEFT(B43,2) -> 
A44: =A43+1 -> 29 | B44: TOTAL ALLOWABLE ISS COSTS PAID BY THE PROVIDER (Line 24+25+26+27+28) | C44: =SUM(C38:C43) -> 2210578.76
A45: =A44+1 -> 30 | B45: TOTAL PRELIMINARY NET SETTLEMENT AMOUNT | C45: =IF((_C001589-C44)<0,0,(_C001589-C44)) -> 4367.95
B46: DSHS/DDA Schedule G ISS Settlement (Rev. 12/2019)
